Workbook

Sheet HUMMEL Lead rot
A1: Rabattsatz: | AI1: Freigabe:
A2: 40 % | AI2: Größen und Initialen
AI3: sind überprüft
AI4: und korrekt.
A5: HUMMEL Lead rot
A6: lieferbar bis 2024
A7: Farbe 3062-rot
A8: Hosen 2001 schwarz | B8: Poly ZIP Hoodie | D8: Poly Hoodie | F8: Half ZIP | H8: Poly Zip Jacke | J8: Poly Jersey | L8: Polo | N8: Poly Short | P8: Football Pant | R8: Trainer Short | T8: Poly Pant | AI8: Datum / Unterschrift
A9: Artikelnummer: | B9: 207412/207411-3062 | D9: 207410/207409/211857 | F9: 207404/207403/207424 | H9: 207400/207399/211854 | J9: 207394/207393/207397 | L9: 211375/207417-3584 | N9: 207396/207395/207398 | P9: 207414/207413-2001 | R9: 211376/207418-2001 | T9: 210280/210279/211856 | AI9: Name Druckbuchstaben
A10: Preis Kinder/Erwachsene | B10: 54.95 € | C10: 59.95 € | D10: 44.95 € | E10: 49.95 € | F10: 42.95 € | G10: 47.95 € | H10: 47.95 € | I10: 54.95 € | J10: 27.95 € | K10: 34.95 € | L10: 39.95 € | M10: 44.95 € | N10: 24.95 € | O10: 27.95 € | P10: 42.95 € | Q10: 44.95 € | R10: 27.95 € | S10: 34.95 € | T10: 42.95 € | U10: 47.95 € | AI10: Vereinsanteil | AL10: pro Person
A11: abzüglich Rabatt | B11: =B10-(B10*Rabatt) -> 32.97 € | C11: 35.97 € | D11: 26.97 € | E11: 29.97 € | F11: 25.77 € | G11: 28.77 € | H11: 28.77 € | I11: 32.97 € | J11: 16.77 € | K11: 20.97 € | L11: 23.97 € | M11: 26.97 € | N11: 14.97 € | O11: 16.77 € | P11: =P10-(P10*Rabatt) -> 25.77 € | Q11: 26.97 € | R11: 16.77 € | S11: 20.97 € | T11: 25.77 € | U11: 28.77 € | V11: 0.00 € | W11: 0.00 € | X11: 0.00 € | Y11: 0.00 € | Z11: 0.00 € | AA11: 0.00 € | AB11: 0.00 € | AC11: 0.00 € | AD11: 0.00 € | AE11: 0.00 € | AF11: 0.00 € | AG11: 0.00 €
A12: mit Rabatt OHNE Druck | B12: =ROUNDUP(B11,1) -> 33.00 € | C12: 36.00 € | D12: 27.00 € | E12: 30.00 € | F12: 25.80 € | G12: 28.80 € | H12: 28.80 € | I12: 33.00 € | J12: 16.80 € | K12: 21.00 € | L12: 24.00 € | M12: 27.00 € | N12: 15.00 € | O12: 16.80 € | P12: 25.80 € | Q12: 27.00 € | R12: 16.80 € | S12: 21.00 € | T12: 25.80 € | U12: 28.80 € | V12: 0.00 € | W12: 0.00 € | X12: 0.00 € | Y12: 0.00 € | Z12: 0.00 € | AA12: 0.00 € | AB12: 0.00 € | AC12: 0.00 € | AD12: =ROUNDUP(AD11,1) -> 0.00 € | AE12: =ROUNDUP(AE11,1) -> 0.00 € | AF12: =ROUNDUP(AF11,1) -> 0.00 € | AG12: =ROUNDUP(AG11,1) -> 0.00 € | AI12: Sponsorzuzahlung | AL12: pro Person
A13: Einzelpreis incl. Druck | B13: =IF(B12=0,0,(B12+B62+B63+B64+B65+B66)) -> 52.85 € | C13: =IF(C12=0,0,(C12+B62+B63+B64+B65+B66)) -> 55.85 € | D13: =IF(D12=0,0,(D12+D62+D63+D64+D65+D66)) -> 46.85 € | E13: =IF(E12=0,0,(E12+D62+D63+D64+D65+D66)) -> 49.85 € | F13: =IF(F12=0,0,(F12+F62+F63+F64+F65+F66)) -> 45.65 € | G13: =IF(G12=0,0,(G12+F62+F63+F64+F65+F66)) -> 48.65 € | H13: =IF(H12=0,0,(H12+H62+H63+H64+H65+H66)) -> 48.65 € | I13: =IF(I12=0,0,(I12+H62+H63+H64+H65+H66)) -> 52.85 € | J13: =IF(J12=0,0,(J12+J62+J63+J64+J65+J66)) -> 36.65 € | K13: =IF(K12=0,0,(K12+J62+J63+J64+J65+J66)) -> 40.85 € | L13: =IF(L12=0,0,(L12+L62+L63+L64+L65+L66)) -> 43.85 € | M13: =IF(M12=0,0,(M12+L62+L63+L64+L65+L66)) -> 46.85 € | N13: =IF(N12=0,0,(N12+N62+N63+N64+N65+N66)) -> 18.00 € | O13: =IF(O12=0,0,(O12+N62+N63+N64+N65+N66)) -> 19.80 € | P13: =IF(P12=0,0,(P12+P62+P63+P64+P65+P66)) -> 28.80 € | Q13: =IF(Q12=0,0,(Q12+P62+P63+P64+P65+P66)) -> 30.00 € | R13: =IF(R12=0,0,(R12+R62+R63+R64+R65+R66)) -> 19.80 € | S13: =IF(S12=0,0,(S12+R62+R63+R64+R65+R66)) -> 24.00 € | T13: =IF(T12=0,0,(T12+T62+T63+T64+T65+T66)) -> 28.80 € | U13: =IF(U12=0,0,(U12+T62+T63+T64+T65+T66)) -> 31.80 € | V13: =IF(V12=0,0,(V12+V62+V63+V64+V65+V66)) -> 0.00 € | W13: 0.00 € | X13: =IF(X12=0,0,(X12+X62+X63+X64+X65+X66)) -> 0.00 € | Y13: =IF(Y12=0,0,(Y12+X62+X63+X64+X65+X66)) -> 0.00 € | Z13: =IF(Z12=0,0,(Z12+Z62+Z63+Z64+Z65+Z66)) -> 0.00 € | AA13: =IF(AA12=0,0,(AA12+Z62+Z63+Z64+Z65+Z66)) -> 0.00 € | AB13: =IF(AB12=0,0,(AB12+AB62+AB63+AB64+AB65+AB66)) -> 0.00 € | AC13: =IF(AC12=0,0,(AC12+AB62+AB63+AB64+AB65+AB66)) -> 0.00 € | AD13: =IF(AD12=0,0,(AD12+AD62+AD63+AD64+AD65+AD66)) -> 0.00 € | AE13: =IF(AE12=0,0,(AE12+AD62+AD63+AD64+AD65+AD66)) -> 0.00 € | AF13: =IF(AF12=0,0,(AF12+AF62+AF63+AF64+AF65+AF66)) -> 0.00 € | AG13: =IF(AG12=0,0,(AG12+AF62+AF63+AF64+AF65+AF66)) -> 0.00 € | AJ13: Initialen werden IMMER berechnet !!
A14: Name | B14: Größe | C14: Initialen | D14: Größe | E14: Initialen | F14: Größe | G14: Initialen | H14: Größe | I14: Initialen | J14: Größe | K14: Initialen | L14: Größe | M14: Initialen | N14: Größe | O14: Initialen | P14: Größe | Q14: Initialen | R14: Größe | S14: Initialen | T14: Größe | U14: Initialen | V14: Größe | W14: Initialen | X14: Größe | Y14: Initialen | Z14: Größe | AA14: Initialen | AB14: Größe | AC14: Initialen | AD14: Größe | AE14: Initialen | AF14: Größe | AG14: Initialen | AI14: Preis | AJ14: Anzahl | AK14: Sponsor | AL14: Endpreis
AH15: 1 | AI15: =SUM(B269:AG269) -> 0.00 € | AJ15: =COUNTA(B15,D15,F15,H15,J15,L15,N15,P15,R15,T15,V15,X15,Z15,AB15,AD15,AF15) -> 0 | AK15: =IF(AI15<>0,(IF($AK$10<>0,$AK$10,AI15*Sponsorrabatt)),0) -> 0.00 € | AL15: =AI15-AK15 -> 0.00 €
AH16: 2 | AI16: 0.00 € | AJ16: 0 | AK16: 0.00 € | AL16: 0.00 €
AH17: 3 | AI17: 0.00 € | AJ17: 0 | AK17: 0.00 € | AL17: 0.00 €
AH18: 4 | AI18: 0.00 € | AJ18: 0 | AK18: 0.00 € | AL18: 0.00 €
AH19: 5 | AI19: 0.00 € | AJ19: 0 | AK19: 0.00 € | AL19: 0.00 €
AH20: 6 | AI20: 0.00 € | AJ20: 0 | AK20: 0.00 € | AL20: 0.00 €
AH21: 7 | AI21: 0.00 € | AJ21: 0 | AK21: 0.00 € | AL21: 0.00 €
AH22: 8 | AI22: 0.00 € | AJ22: 0 | AK22: 0.00 € | AL22: 0.00 €
AH23: 9 | AI23: 0.00 € | AJ23: 0 | AK23: 0.00 € | AL23: 0.00 €
AH24: 10 | AI24: 0.00 € | AJ24: 0 | AK24: 0.00 € | AL24: 0.00 €
AH25: 11 | AI25: 0.00 € | AJ25: 0 | AK25: 0.00 € | AL25: 0.00 €
AH26: 12 | AI26: 0.00 € | AJ26: 0 | AK26: 0.00 € | AL26: 0.00 €
AH27: 13 | AI27: 0.00 € | AJ27: 0 | AK27: 0.00 € | AL27: 0.00 €
AH28: 14 | AI28: 0.00 € | AJ28: 0 | AK28: 0.00 € | AL28: 0.00 €
AH29: 15 | AI29: 0.00 € | AJ29: 0 | AK29: 0.00 € | AL29: 0.00 €
AH30: 16 | AI30: 0.00 € | AJ30: 0 | AK30: 0.00 € | AL30: 0.00 €
AH31: 17 | AI31: 0.00 € | AJ31: 0 | AK31: 0.00 € | AL31: 0.00 €
AH32: 18 | AI32: 0.00 € | AJ32: 0 | AK32: 0.00 € | AL32: 0.00 €
AH33: 19 | AI33: 0.00 € | AJ33: 0 | AK33: 0.00 € | AL33: 0.00 €
AH34: 20 | AI34: 0.00 € | AJ34: 0 | AK34: 0.00 € | AL34: 0.00 €
AH35: 21 | AI35: 0.00 € | AJ35: 0 | AK35: 0.00 € | AL35: 0.00 €
AH36: 22 | AI36: 0.00 € | AJ36: 0 | AK36: 0.00 € | AL36: 0.00 €
AH37: 23 | AI37: 0.00 € | AJ37: 0 | AK37: 0.00 € | AL37: 0.00 €
AH38: 24 | AI38: 0.00 € | AJ38: 0 | AK38: 0.00 € | AL38: 0.00 €
AH39: 25 | AI39: 0.00 € | AJ39: 0 | AK39: 0.00 € | AL39: 0.00 €
AH40: 26 | AI40: 0.00 € | AJ40: 0 | AK40: 0.00 € | AL40: 0.00 €
AH41: 27 | AI41: 0.00 € | AJ41: 0 | AK41: 0.00 € | AL41: 0.00 €
AH42: 28 | AI42: =SUM(B296:AG296) -> 0.00 € | AJ42: 0 | AK42: 0.00 € | AL42: 0.00 €
AH43: 29 | AI43: 0.00 € | AJ43: 0 | AK43: 0.00 € | AL43: 0.00 €
AH44: 30 | AI44: 0.00 € | AJ44: 0 | AK44: 0.00 € | AL44: 0.00 €
AH45: 31 | AI45: 0.00 € | AJ45: 0 | AK45: 0.00 € | AL45: 0.00 €
AH46: 32 | AI46: 0.00 € | AJ46: 0 | AK46: 0.00 € | AL46: 0.00 €
AH47: 33 | AI47: 0.00 € | AJ47: 0 | AK47: 0.00 € | AL47: 0.00 €
AH48: 34 | AI48: 0.00 € | AJ48: 0 | AK48: 0.00 € | AL48: 0.00 €
AH49: 35 | AI49: 0.00 € | AJ49: 0 | AK49: 0.00 € | AL49: 0.00 €
AH50: 36 | AI50: 0.00 € | AJ50: 0 | AK50: 0.00 € | AL50: 0.00 €
AH51: 37 | AI51: 0.00 € | AJ51: 0 | AK51: 0.00 € | AL51: 0.00 €
AH52: 38 | AI52: 0.00 € | AJ52: 0 | AK52: 0.00 € | AL52: 0.00 €
AH53: 39 | AI53: 0.00 € | AJ53: 0 | AK53: 0.00 € | AL53: 0.00 €
AH54: 40 | AI54: 0.00 € | AJ54: 0 | AK54: 0.00 € | AL54: 0.00 €
AH55: 41 | AI55: 0.00 € | AJ55: 0 | AK55: 0.00 € | AL55: 0.00 €
AH56: 42 | AI56: 0.00 € | AJ56: 0 | AK56: 0.00 € | AL56: 0.00 €
AH57: 43 | AI57: 0.00 € | AJ57: 0 | AK57: 0.00 € | AL57: 0.00 €
AH58: 44 | AI58: 0.00 € | AJ58: 0 | AK58: 0.00 € | AL58: 0.00 €
AH59: 45 | AI59: 0.00 € | AJ59: 0 | AK59: 0.00 € | AL59: 0.00 €
AH60: 46 | AI60: 0.00 € | AJ60: 0 | AK60: 0.00 € | AL60: 0.00 €
A61: Anzahl pro Spalte: | B61: =COUNTA(B15:B60) -> 0 | C61: =IF(B62=0,0,COUNTA(C15:C60)) -> 0 | D61: =COUNTA(D15:D60) -> 0 | E61: =IF(D62=0,0,COUNTA(E15:E60)) -> 0 | F61: =COUNTA(F15:F60) -> 0 | G61: =IF(F62=0,0,COUNTA(G15:G60)) -> 0 | H61: =COUNTA(H15:H60) -> 0 | I61: =IF(H62=0,0,COUNTA(I15:I60)) -> 0 | J61: =COUNTA(J15:J60) -> 0 | K61: =IF(J62=0,0,COUNTA(K15:K60)) -> 0 | L61: =COUNTA(L15:L60) -> 0 | M61: =IF(L62=0,0,COUNTA(M15:M60)) -> 0 | N61: =COUNTA(N15:N60) -> 0 | O61: =IF(N62=0,0,COUNTA(O15:O60)) -> 0 | P61: =COUNTA(P15:P60) -> 0 | Q61: =IF(P62=0,0,COUNTA(Q15:Q60)) -> 0 | R61: =COUNTA(R15:R60) -> 0 | S61: =IF(R62=0,0,COUNTA(S15:S60)) -> 0 | T61: =COUNTA(T15:T60) -> 0 | U61: =IF(T62=0,0,COUNTA(U15:U60)) -> 0 | V61: =COUNTA(V15:V60) -> 0 | W61: =IF(V62=0,0,COUNTA(W15:W60)) -> 0 | X61: =COUNTA(X15:X60) -> 0 | Y61: =IF(X62=0,0,COUNTA(Y15:Y60)) -> 0 | Z61: =COUNTA(Z15:Z60) -> 0 | AA61: =IF(Z62=0,0,COUNTA(AA15:AA60)) -> 0 | AB61: =COUNTA(AB15:AB60) -> 0 | AC61: =IF(AB62=0,0,COUNTA(AC15:AC60)) -> 0 | AD61: =COUNTA(AD15:AD60) -> 0 | AE61: =IF(AD62=0,0,COUNTA(AE15:AE60)) -> 0 | AF61: =COUNTA(AF15:AF60) -> 0 | AG61: =IF(AF62=0,0,COUNTA(AG15:AG60)) -> 0 | AI61: =AF61+AD61+AB61+Z61+X61+V61+T61+R61+P61+N61+L61+J61+H61+F61+D61+B61 -> 0 | AJ61: Teile | AK61: Summe | AL61: Summe
A62: Initialen | B62: 3.00 € | C62: unten rechts | D62: 3.00 € | E62: rechts | F62: 3.00 € | G62: unten rechts | H62: 3.00 € | J62: 3.00 € | K62: rechts | L62: 3.00 € | M62: unten rechts | N62: 3.00 € | P62: 3.00 € | R62: 3.00 € | T62: 3.00 € | AI62: Summe: | AJ62: =SUM(AI15:AI60)+B68+D68+F68 -> 0.00 € | AK62: Sponsor | AL62: Mitglieder
A63: Wappen 3-farbig | B63: 5.95 € | D63: 5.95 € | F63: 5.95 € | H63: 5.95 € | J63: 5.95 € | L63: 5.95 € | AI63: =AJ62 -> 0.00 € | AK63: =SUM(AK15:AK60) -> 0.00 € | AL63: =SUM(AL15:AL60) -> 0.00 €
A64: Vereinsname 2-spaltig | B64: 4.95 € | D64: 4.95 € | F64: 4.95 € | H64: 4.95 € | J64: 4.95 € | L64: 4.95 €
A65: Werbung #1 | B65: 5.95 € | D65: 5.95 € | F65: 5.95 € | H65: 5.95 € | J65: 5.95 € | L65: 5.95 €
A66: Werbung #2 | AI66: Brutto: | AJ66: =AI169+AI302+AI362 -> 0.00 €
A67: Sport Trinkner gratis | B67: 3.95 € | C67: Ärmel rechts | D67: 3.95 € | F67: 3.95 € | G67: Ärmel rechts | H67: 3.95 € | J67: 3.95 € | L67: 3.95 € | AI67: Rabatt | AJ67: =AJ66-AJ62 -> 0.00 €
A68: Schablonenkosten: max. 3x | B68: 0.00 € | D68: 0.00 € | F68: 0.00 € | H68: Bestellung abgeben bei: Sport Trinkner, Haupstraße 42, 74369 Löchgau, 07143/4777 Excel-Tabelle per mail an: info@sport-trinkner.de | AI68: =MID(A364,1,1)&"-"&MID(A364,2,1)&"-"&MID(A364,3,1)&"-"&MID(A364,4,1)&"-"&MID(A364,5,1) -> 1-2-4-7-4 | AK68: V2020-08-2
B69: Preis inclusive | G69: =Rabatt -> 40 % | I69: Der Einzelpreis ist immer inclusive dem Vereinsrabatt, sowie dem kompletten Druck & Initialen angegeben.
B70: Größe1 | C70: Preis1 | D70: Größe2 | E70: Preis2 | F70: Größe3 | G70: Preis3 | H70: Größe4 | I70: Preis4 | J70: Größe5 | K70: Preis5 | L70: Größe6 | M70: Preis6 | N70: Größe7 | O70: Preis7 | P70: Größe8 | Q70: Preis8 | R70: Größe9 | S70: Preis9 | T70: Größe10 | U70: Preis10 | V70: Größe11 | W70: Preis11 | Y70: Preis12 | Z70: Größe13 | AA70: Preis13 | AB70: Größe14 | AC70: Preis14 | AD70: Größe15 | AE70: Preis15 | AF70: Größe16 | AG70: Preis16
A71: Kindergrößen | B71: .116 | C71: =B10 -> 54.95 € | D71: .116 | E71: =D10 -> 44.95 € | F71: .116 | G71: =F10 -> 42.95 € | H71: .116 | I71: =H10 -> 47.95 € | J71: .104 | K71: =J10 -> 27.95 € | L71: .116 | M71: =L10 -> 39.95 € | N71: .116 | O71: =N10 -> 24.95 € | P71: .116 | Q71: =P10 -> 42.95 € | R71: .116 | S71: =R10 -> 27.95 € | T71: .116 | U71: =T10 -> 42.95 € | W71: =V10 -> 0.00 € | Y71: =X10 -> 0.00 € | AA71: =Z10 -> 0.00 € | AC71: =AB10 -> 0.00 € | AE71: =AD10 -> 0.00 € | AG71: =AF10 -> 0.00 €
B72: .128 | C72: =B10 -> 54.95 € | D72: .128 | E72: =D10 -> 44.95 € | F72: .128 | G72: =F10 -> 42.95 € | H72: .128 | I72: =H10 -> 47.95 € | J72: .116 | K72: =J10 -> 27.95 € | L72: .128 | M72: =L10 -> 39.95 € | N72: .128 | O72: =N10 -> 24.95 € | P72: .128 | Q72: =P10 -> 42.95 € | R72: .128 | S72: =R10 -> 27.95 € | T72: .128 | U72: =T10 -> 42.95 € | W72: =V10 -> 0.00 € | Y72: =X10 -> 0.00 € | AA72: =Z10 -> 0.00 € | AC72: =AB10 -> 0.00 € | AE72: =AD10 -> 0.00 € | AG72: =AF10 -> 0.00 €
B73: .140 | C73: =B10 -> 54.95 € | D73: .140 | E73: =D10 -> 44.95 € | F73: .140 | G73: =F10 -> 42.95 € | H73: .140 | I73: =H10 -> 47.95 € | J73: .128 | K73: =J10 -> 27.95 € | L73: .140 | M73: =L10 -> 39.95 € | N73: .140 | O73: =N10 -> 24.95 € | P73: .140 | Q73: =P10 -> 42.95 € | R73: .140 | S73: =R10 -> 27.95 € | T73: .140 | U73: =T10 -> 42.95 € | W73: =V10 -> 0.00 € | Y73: =X10 -> 0.00 € | AA73: =Z10 -> 0.00 € | AC73: =AB10 -> 0.00 € | AE73: =AD10 -> 0.00 € | AG73: =AF10 -> 0.00 €
B74: .152 | C74: =B10 -> 54.95 € | D74: .152 | E74: =D10 -> 44.95 € | F74: .152 | G74: =F10 -> 42.95 € | H74: .152 | I74: =H10 -> 47.95 € | J74: .140 | K74: =J10 -> 27.95 € | L74: .152 | M74: =L10 -> 39.95 € | N74: .152 | O74: =N10 -> 24.95 € | P74: .152 | Q74: =P10 -> 42.95 € | R74: .152 | S74: =R10 -> 27.95 € | T74: .152 | U74: =T10 -> 42.95 € | W74: =V10 -> 0.00 € | Y74: =X10 -> 0.00 € | AA74: =Z10 -> 0.00 € | AC74: =AB10 -> 0.00 € | AE74: =AD10 -> 0.00 € | AG74: =AF10 -> 0.00 €
B75: .164 | C75: =B10 -> 54.95 € | D75: .164 | E75: =D10 -> 44.95 € | F75: .164 | G75: =F10 -> 42.95 € | H75: .164 | I75: =H10 -> 47.95 € | J75: .152 | K75: =J10 -> 27.95 € | L75: .164 | M75: =L10 -> 39.95 € | N75: .164 | O75: =N10 -> 24.95 € | P75: .164 | Q75: =P10 -> 42.95 € | R75: .164 | S75: =R10 -> 27.95 € | T75: .164 | U75: =T10 -> 42.95 € | W75: =V10 -> 0.00 € | Y75: =X10 -> 0.00 € | AA75: =Z10 -> 0.00 € | AC75: =AB10 -> 0.00 € | AE75: =AD10 -> 0.00 € | AG75: =AF10 -> 0.00 €
B76: .176 | C76: =B10 -> 54.95 € | E76: =D10 -> 44.95 € | F76: .176 | G76: =F10 -> 42.95 € | H76: .176 | I76: =H10 -> 47.95 € | J76: .164 | K76: =J10 -> 27.95 € | L76: .176 | M76: =L10 -> 39.95 € | N76: .176 | O76: =N10 -> 24.95 € | P76: .176 | Q76: =P10 -> 42.95 € | R76: .176 | S76: =R10 -> 27.95 € | T76: .176 | U76: =T10 -> 42.95 € | W76: =V10 -> 0.00 € | Y76: =X10 -> 0.00 € | AA76: =Z10 -> 0.00 € | AC76: =AB10 -> 0.00 € | AE76: =AD10 -> 0.00 € | AG76: =AF10 -> 0.00 €
A77: Herrengrößen | B77: S | C77: =C10 -> 59.95 € | D77: S | E77: =E10 -> 49.95 € | F77: S | G77: =G10 -> 47.95 € | H77: S | I77: =I10 -> 54.95 € | J77: S | K77: =K10 -> 34.95 € | L77: S | M77: =M10 -> 44.95 € | N77: S | O77: =O10 -> 27.95 € | P77: XS | Q77: =Q10 -> 44.95 € | R77: S | S77: =S10 -> 34.95 € | T77: S | U77: =U10 -> 47.95 € | W77: =W10 -> 0.00 € | Y77: =Y10 -> 0.00 € | AA77: =AA10 -> 0.00 € | AC77: =AC10 -> 0.00 € | AE77: =AE10 -> 0.00 € | AG77: =AG10 -> 0.00 €
B78: M | C78: =C10 -> 59.95 € | D78: M | E78: =E10 -> 49.95 € | F78: M | G78: =G10 -> 47.95 € | H78: M | I78: =I10 -> 54.95 € | J78: M | K78: =K10 -> 34.95 € | L78: M | M78: =M10 -> 44.95 € | N78: M | O78: =O10 -> 27.95 € | P78: S | Q78: =Q10 -> 44.95 € | R78: M | S78: =S10 -> 34.95 € | T78: M | U78: =U10 -> 47.95 € | W78: =W10 -> 0.00 € | Y78: =Y10 -> 0.00 € | AA78: =AA10 -> 0.00 € | AC78: =AC10 -> 0.00 € | AE78: =AE10 -> 0.00 € | AG78: =AG10 -> 0.00 €
B79: L | C79: =C10 -> 59.95 € | D79: L | E79: =E10 -> 49.95 € | F79: L | G79: =G10 -> 47.95 € | H79: L | I79: =I10 -> 54.95 € | J79: L | K79: =K10 -> 34.95 € | L79: L | M79: =M10 -> 44.95 € | N79: L | O79: =O10 -> 27.95 € | P79: M | Q79: =Q10 -> 44.95 € | R79: L | S79: =S10 -> 34.95 € | T79: L | U79: =U10 -> 47.95 € | W79: =W10 -> 0.00 € | Y79: =Y10 -> 0.00 € | AA79: =AA10 -> 0.00 € | AC79: =AC10 -> 0.00 € | AE79: =AE10 -> 0.00 € | AG79: =AG10 -> 0.00 €
B80: XL | C80: =C10 -> 59.95 € | D80: XL | E80: =E10 -> 49.95 € | F80: XL | G80: =G10 -> 47.95 € | H80: XL | I80: =I10 -> 54.95 € | J80: XL | K80: =K10 -> 34.95 € | L80: XL | M80: =M10 -> 44.95 € | N80: XL | O80: =O10 -> 27.95 € | P80: L | Q80: =Q10 -> 44.95 € | R80: XL | S80: =S10 -> 34.95 € | T80: XL | U80: =U10 -> 47.95 € | W80: =W10 -> 0.00 € | Y80: =Y10 -> 0.00 € | AA80: =AA10 -> 0.00 € | AC80: =AC10 -> 0.00 € | AE80: =AE10 -> 0.00 € | AG80: =AG10 -> 0.00 €
B81: XXL | C81: =C10 -> 59.95 € | D81: XXL | E81: =E10 -> 49.95 € | F81: XXL | G81: =G10 -> 47.95 € | H81: XXL | I81: =I10 -> 54.95 € | J81: XXL | K81: =K10 -> 34.95 € | L81: XXL | M81: =M10 -> 44.95 € | N81: XXL | O81: =O10 -> 27.95 € | P81: XL | Q81: =Q10 -> 44.95 € | R81: XXL | S81: =S10 -> 34.95 € | T81: XXL | U81: =U10 -> 47.95 € | W81: =W10 -> 0.00 € | Y81: =Y10 -> 0.00 € | AA81: =AA10 -> 0.00 € | AC81: =AC10 -> 0.00 € | AE81: =AE10 -> 0.00 € | AG81: =AG10 -> 0.00 €
B82: XXXL | C82: =C10 -> 59.95 € | D82: XXXL | E82: =E10 -> 49.95 € | F82: XXXL | G82: =G10 -> 47.95 € | H82: XXXL | I82: =I10 -> 54.95 € | J82: XXL | K82: =K10 -> 34.95 € | L82: XXXL | M82: =M10 -> 44.95 € | N82: XXXL | O82: =O10 -> 27.95 € | P82: XXL | Q82: =Q10 -> 44.95 € | R82: XXXL | S82: =S10 -> 34.95 € | T82: XXXL | U82: =U10 -> 47.95 € | W82: =W10 -> 0.00 € | Y82: =Y10 -> 0.00 € | AA82: =AA10 -> 0.00 € | AC82: =AC10 -> 0.00 € | AE82: =AE10 -> 0.00 € | AG82: =AG10 -> 0.00 €
C83: =C10 -> 59.95 € | E83: =E10 -> 49.95 € | G83: =G10 -> 47.95 € | I83: =I10 -> 54.95 € | K83: =K10 -> 34.95 € | M83: =M10 -> 44.95 € | O83: =O10 -> 27.95 € | P83: XXXL | Q83: =Q10 -> 44.95 € | S83: =S10 -> 34.95 € | U83: =U10 -> 47.95 € | W83: =W10 -> 0.00 € | Y83: =Y10 -> 0.00 € | AA83: =AA10 -> 0.00 € | AC83: =AC10 -> 0.00 € | AE83: =AE10 -> 0.00 € | AG83: =AG10 -> 0.00 €
C84: =C10 -> 59.95 € | E84: =E10 -> 49.95 € | G84: =G10 -> 47.95 € | I84: =I10 -> 54.95 € | K84: =K10 -> 34.95 € | M84: =M10 -> 44.95 € | O84: =O10 -> 27.95 € | Q84: =Q10 -> 44.95 € | S84: =S10 -> 34.95 € | U84: =U10 -> 47.95 € | W84: =W10 -> 0.00 € | Y84: =Y10 -> 0.00 € | AA84: =AA10 -> 0.00 € | AC84: =AC10 -> 0.00 € | AE84: =AE10 -> 0.00 € | AG84: =AG10 -> 0.00 €
A85: Damengrößen | C85: =C10 -> 59.95 € | E85: =E10 -> 49.95 € | G85: =G10 -> 47.95 € | I85: =I10 -> 54.95 € | K85: =K10 -> 34.95 € | M85: =M10 -> 44.95 € | O85: =O10 -> 27.95 € | Q85: =Q10 -> 44.95 € | S85: =S10 -> 34.95 € | U85: =U10 -> 47.95 € | W85: =W10 -> 0.00 € | Y85: =Y10 -> 0.00 € | AA85: =AA10 -> 0.00 € | AC85: =AC10 -> 0.00 € | AE85: =AE10 -> 0.00 € | AG85: =AG10 -> 0.00 €
C86: =C10 -> 59.95 € | D86: XS(W) | E86: =E10 -> 49.95 € | F86: XS(W) | G86: =G10 -> 47.95 € | H86: XS(W) | I86: =I10 -> 54.95 € | J86: XS(W) | K86: =K10 -> 34.95 € | M86: =M10 -> 44.95 € | N86: XS(W) | O86: =O10 -> 27.95 € | Q86: =Q10 -> 44.95 € | S86: =S10 -> 34.95 € | T86: XS(W) | U86: =U10 -> 47.95 € | W86: =W10 -> 0.00 € | Y86: =Y10 -> 0.00 € | AA86: =AA10 -> 0.00 € | AC86: =AC10 -> 0.00 € | AE86: =AE10 -> 0.00 € | AG86: =AG10 -> 0.00 €
C87: =C10 -> 59.95 € | D87: S(W) | E87: =E10 -> 49.95 € | F87: S(W) | G87: =G10 -> 47.95 € | H87: S(W) | I87: =I10 -> 54.95 € | J87: S(W) | K87: =K10 -> 34.95 € | M87: =M10 -> 44.95 € | N87: S(W) | O87: =O10 -> 27.95 € | Q87: =Q10 -> 44.95 € | S87: =S10 -> 34.95 € | T87: S(W) | U87: =U10 -> 47.95 € | W87: =W10 -> 0.00 € | Y87: =Y10 -> 0.00 € | AA87: =AA10 -> 0.00 € | AC87: =AC10 -> 0.00 € | AE87: =AE10 -> 0.00 € | AG87: =AG10 -> 0.00 €
C88: =C10 -> 59.95 € | D88: M(W) | E88: =E10 -> 49.95 € | F88: M(W) | G88: =G10 -> 47.95 € | H88: M(W) | I88: =I10 -> 54.95 € | J88: M(W) | K88: =K10 -> 34.95 € | M88: =M10 -> 44.95 € | N88: M(W) | O88: =O10 -> 27.95 € | Q88: =Q10 -> 44.95 € | S88: =S10 -> 34.95 € | T88: M(W) | U88: =U10 -> 47.95 € | W88: =W10 -> 0.00 € | Y88: =Y10 -> 0.00 € | AA88: =AA10 -> 0.00 € | AC88: =AC10 -> 0.00 € | AE88: =AE10 -> 0.00 € | AG88: =AG10 -> 0.00 €
C89: =C10 -> 59.95 € | D89: L(W) | E89: =E10 -> 49.95 € | F89: L(W) | G89: =G10 -> 47.95 € | H89: L(W) | I89: =I10 -> 54.95 € | J89: L(W) | K89: =K10 -> 34.95 € | M89: =M10 -> 44.95 € | N89: L(W) | O89: =O10 -> 27.95 € | Q89: =Q10 -> 44.95 € | S89: =S10 -> 34.95 € | T89: L(W) | U89: =U10 -> 47.95 € | W89: =W10 -> 0.00 € | Y89: =Y10 -> 0.00 € | AA89: =AA10 -> 0.00 € | AC89: =AC10 -> 0.00 € | AE89: =AE10 -> 0.00 € | AG89: =AG10 -> 0.00 €
C90: =C10 -> 59.95 € | D90: XL(W) | E90: =E10 -> 49.95 € | F90: XL(W) | G90: =G10 -> 47.95 € | H90: XL(W) | I90: =I10 -> 54.95 € | J90: XL(W) | K90: =K10 -> 34.95 € | M90: =M10 -> 44.95 € | N90: XL(W) | O90: =O10 -> 27.95 € | Q90: =Q10 -> 44.95 € | S90: =S10 -> 34.95 € | T90: XL(W) | U90: =U10 -> 47.95 € | W90: =W10 -> 0.00 € | Y90: =Y10 -> 0.00 € | AA90: =AA10 -> 0.00 € | AC90: =AC10 -> 0.00 € | AE90: =AE10 -> 0.00 € | AG90: =AG10 -> 0.00 €
C91: =C10 -> 59.95 € | D91: XXL(W) | E91: =E10 -> 49.95 € | F91: XXL(W) | G91: =G10 -> 47.95 € | H91: XXL(W) | I91: =I10 -> 54.95 € | J91: XXL(W) | K91: =K10 -> 34.95 € | M91: =M10 -> 44.95 € | N91: XXL(W) | O91: =O10 -> 27.95 € | Q91: =Q10 -> 44.95 € | S91: =S10 -> 34.95 € | T91: XXL(W) | U91: =U10 -> 47.95 € | W91: =W10 -> 0.00 € | Y91: =Y10 -> 0.00 € | AA91: =AA10 -> 0.00 € | AC91: =AC10 -> 0.00 € | AE91: =AE10 -> 0.00 € | AG91: =AG10 -> 0.00 €
C92: =C10 -> 59.95 € | E92: =E10 -> 49.95 € | G92: =G10 -> 47.95 € | I92: =I10 -> 54.95 € | K92: =K10 -> 34.95 € | M92: =M10 -> 44.95 € | O92: =O10 -> 27.95 € | Q92: =Q10 -> 44.95 € | S92: =S10 -> 34.95 € | U92: =U10 -> 47.95 € | W92: =W10 -> 0.00 € | Y92: =Y10 -> 0.00 € | AA92: =AA10 -> 0.00 € | AC92: =AC10 -> 0.00 € | AE92: =AE10 -> 0.00 € | AG92: =AG10 -> 0.00 €
C93: =C10 -> 59.95 € | E93: =E10 -> 49.95 € | G93: =G10 -> 47.95 € | I93: =I10 -> 54.95 € | K93: =K10 -> 34.95 € | M93: =M10 -> 44.95 € | O93: =O10 -> 27.95 € | Q93: =Q10 -> 44.95 € | S93: =S10 -> 34.95 € | U93: =U10 -> 47.95 € | W93: =W10 -> 0.00 € | Y93: =Y10 -> 0.00 € | AA93: =AA10 -> 0.00 € | AC93: =AC10 -> 0.00 € | AE93: =AE10 -> 0.00 € | AG93: =AG10 -> 0.00 €
C94: =C10 -> 59.95 € | E94: =E10 -> 49.95 € | G94: =G10 -> 47.95 € | I94: =I10 -> 54.95 € | K94: =K10 -> 34.95 € | M94: =M10 -> 44.95 € | O94: =O10 -> 27.95 € | Q94: =Q10 -> 44.95 € | S94: =S10 -> 34.95 € | U94: =U10 -> 47.95 € | W94: =W10 -> 0.00 € | Y94: =Y10 -> 0.00 € | AA94: =AA10 -> 0.00 € | AC94: =AC10 -> 0.00 € | AE94: =AE10 -> 0.00 € | AG94: =AG10 -> 0.00 €
B96: Matrixformel, um die Größenliste ohne Leerzeilen auszulesen und in der Dropdownliste anzuzeigen !!
A98: Größenliste für | B98: =IF(ROW(B1)> COUNTA(B$71:B$94), "",INDEX(B:B, SMALL(IF(B$71:B$94<>"", ROW($71:$94)), ROW(A1)))) -> .116 | D98: =IF(ROW(D1)> COUNTA(D$71:D$94), "",INDEX(D:D, SMALL(IF(D$71:D$94<>"", ROW($71:$94)), ROW(C1)))) -> .116 | F98: =IF(ROW(F1)> COUNTA(F$71:F$94), "",INDEX(F:F, SMALL(IF(F$71:F$94<>"", ROW($71:$94)), ROW(E1)))) -> .116 | H98: =IF(ROW(H1)> COUNTA(H$71:H$94), "",INDEX(H:H, SMALL(IF(H$71:H$94<>"", ROW($71:$94)), ROW(G1)))) -> .116 | J98: =IF(ROW(J1)> COUNTA(J$71:J$94), "",INDEX(J:J, SMALL(IF(J$71:J$94<>"", ROW($71:$94)), ROW(I1)))) -> .104 | L98: =IF(ROW(L1)> COUNTA(L$71:L$94), "",INDEX(L:L, SMALL(IF(L$71:L$94<>"", ROW($71:$94)), ROW(K1)))) -> .116 | N98: =IF(ROW(N1)> COUNTA(N$71:N$94), "",INDEX(N:N, SMALL(IF(N$71:N$94<>"", ROW($71:$94)), ROW(M1)))) -> .116 | P98: =IF(ROW(P1)> COUNTA(P$71:P$94), "",INDEX(P:P, SMALL(IF(P$71:P$94<>"", ROW($71:$94)), ROW(O1)))) -> .116 | R98: =IF(ROW(R1)> COUNTA(R$71:R$94), "",INDEX(R:R, SMALL(IF(R$71:R$94<>"", ROW($71:$94)), ROW(Q1)))) -> .116 | T98: =IF(ROW(T1)> COUNTA(T$71:T$94), "",INDEX(T:T, SMALL(IF(T$71:T$94<>"", ROW($71:$94)), ROW(S1)))) -> .116 | V98: =IF(ROW(V1)> COUNTA(V$71:V$94), "",INDEX(V:V, SMALL(IF(V$71:V$94<>"", ROW($71:$94)), ROW(U1)))) ->  | X98: =IF(ROW(X1)> COUNTA(X$71:X$94), "",INDEX(X:X, SMALL(IF(X$71:X$94<>"", ROW($71:$94)), ROW(W1)))) ->  | Z98: =IF(ROW(Z1)> COUNTA(Z$71:Z$94), "",INDEX(Z:Z, SMALL(IF(Z$71:Z$94<>"", ROW($71:$94)), ROW(Y1)))) ->  | AB98: =IF(ROW(AB1)> COUNTA(AB$71:AB$94), "",INDEX(AB:AB, SMALL(IF(AB$71:AB$94<>"", ROW($71:$94)), ROW(AA1)))) ->  | AD98: =IF(ROW(AD1)> COUNTA(AD$71:AD$94), "",INDEX(AD:AD, SMALL(IF(AD$71:AD$94<>"", ROW($71:$94)), ROW(AC1)))) ->  | AF98: =IF(ROW(AF1)> COUNTA(AF$71:AF$94), "",INDEX(AF:AF, SMALL(IF(AF$71:AF$94<>"", ROW($71:$94)), ROW(AE1)))) -> 
A99: Drop-Down | B99: =IF(ROW(B2)> COUNTA(B$71:B$94), "",INDEX(B:B, SMALL(IF(B$71:B$94<>"", ROW($71:$94)), ROW(A2)))) -> .128 | D99: =IF(ROW(D2)> COUNTA(D$71:D$94), "",INDEX(D:D, SMALL(IF(D$71:D$94<>"", ROW($71:$94)), ROW(C2)))) -> .128 | F99: =IF(ROW(F2)> COUNTA(F$71:F$94), "",INDEX(F:F, SMALL(IF(F$71:F$94<>"", ROW($71:$94)), ROW(E2)))) -> .128 | H99: =IF(ROW(H2)> COUNTA(H$71:H$94), "",INDEX(H:H, SMALL(IF(H$71:H$94<>"", ROW($71:$94)), ROW(G2)))) -> .128 | J99: =IF(ROW(J2)> COUNTA(J$71:J$94), "",INDEX(J:J, SMALL(IF(J$71:J$94<>"", ROW($71:$94)), ROW(I2)))) -> .116 | L99: =IF(ROW(L2)> COUNTA(L$71:L$94), "",INDEX(L:L, SMALL(IF(L$71:L$94<>"", ROW($71:$94)), ROW(K2)))) -> .128 | N99: =IF(ROW(N2)> COUNTA(N$71:N$94), "",INDEX(N:N, SMALL(IF(N$71:N$94<>"", ROW($71:$94)), ROW(M2)))) -> .128 | P99: =IF(ROW(P2)> COUNTA(P$71:P$94), "",INDEX(P:P, SMALL(IF(P$71:P$94<>"", ROW($71:$94)), ROW(O2)))) -> .128 | R99: =IF(ROW(R2)> COUNTA(R$71:R$94), "",INDEX(R:R, SMALL(IF(R$71:R$94<>"", ROW($71:$94)), ROW(Q2)))) -> .128 | T99: =IF(ROW(T2)> COUNTA(T$71:T$94), "",INDEX(T:T, SMALL(IF(T$71:T$94<>"", ROW($71:$94)), ROW(S2)))) -> .128 | V99: =IF(ROW(V2)> COUNTA(V$71:V$94), "",INDEX(V:V, SMALL(IF(V$71:V$94<>"", ROW($71:$94)), ROW(U2)))) ->  | X99: =IF(ROW(X2)> COUNTA(X$71:X$94), "",INDEX(X:X, SMALL(IF(X$71:X$94<>"", ROW($71:$94)), ROW(W2)))) ->  | Z99: =IF(ROW(Z2)> COUNTA(Z$71:Z$94), "",INDEX(Z:Z, SMALL(IF(Z$71:Z$94<>"", ROW($71:$94)), ROW(Y2)))) ->  | AB99: =IF(ROW(AB2)> COUNTA(AB$71:AB$94), "",INDEX(AB:AB, SMALL(IF(AB$71:AB$94<>"", ROW($71:$94)), ROW(AA2)))) ->  | AD99: =IF(ROW(AD2)> COUNTA(AD$71:AD$94), "",INDEX(AD:AD, SMALL(IF(AD$71:AD$94<>"", ROW($71:$94)), ROW(AC2)))) ->  | AF99: =IF(ROW(AF2)> COUNTA(AF$71:AF$94), "",INDEX(AF:AF, SMALL(IF(AF$71:AF$94<>"", ROW($71:$94)), ROW(AE2)))) -> 
A100: Menu | B100: =IF(ROW(B3)> COUNTA(B$71:B$94), "",INDEX(B:B, SMALL(IF(B$71:B$94<>"", ROW($71:$94)), ROW(A3)))) -> .140 | D100: =IF(ROW(D3)> COUNTA(D$71:D$94), "",INDEX(D:D, SMALL(IF(D$71:D$94<>"", ROW($71:$94)), ROW(C3)))) -> .140 | F100: =IF(ROW(F3)> COUNTA(F$71:F$94), "",INDEX(F:F, SMALL(IF(F$71:F$94<>"", ROW($71:$94)), ROW(E3)))) -> .140 | H100: =IF(ROW(H3)> COUNTA(H$71:H$94), "",INDEX(H:H, SMALL(IF(H$71:H$94<>"", ROW($71:$94)), ROW(G3)))) -> .140 | J100: =IF(ROW(J3)> COUNTA(J$71:J$94), "",INDEX(J:J, SMALL(IF(J$71:J$94<>"", ROW($71:$94)), ROW(I3)))) -> .128 | L100: =IF(ROW(L3)> COUNTA(L$71:L$94), "",INDEX(L:L, SMALL(IF(L$71:L$94<>"", ROW($71:$94)), ROW(K3)))) -> .140 | N100: =IF(ROW(N3)> COUNTA(N$71:N$94), "",INDEX(N:N, SMALL(IF(N$71:N$94<>"", ROW($71:$94)), ROW(M3)))) -> .140 | P100: =IF(ROW(P3)> COUNTA(P$71:P$94), "",INDEX(P:P, SMALL(IF(P$71:P$94<>"", ROW($71:$94)), ROW(O3)))) -> .140 | R100: =IF(ROW(R3)> COUNTA(R$71:R$94), "",INDEX(R:R, SMALL(IF(R$71:R$94<>"", ROW($71:$94)), ROW(Q3)))) -> .140 | T100: =IF(ROW(T3)> COUNTA(T$71:T$94), "",INDEX(T:T, SMALL(IF(T$71:T$94<>"", ROW($71:$94)), ROW(S3)))) -> .140 | V100: =IF(ROW(V3)> COUNTA(V$71:V$94), "",INDEX(V:V, SMALL(IF(V$71:V$94<>"", ROW($71:$94)), ROW(U3)))) ->  | X100: =IF(ROW(X3)> COUNTA(X$71:X$94), "",INDEX(X:X, SMALL(IF(X$71:X$94<>"", ROW($71:$94)), ROW(W3)))) ->  | Z100: =IF(ROW(Z3)> COUNTA(Z$71:Z$94), "",INDEX(Z:Z, SMALL(IF(Z$71:Z$94<>"", ROW($71:$94)), ROW(Y3)))) ->  | AB100: =IF(ROW(AB3)> COUNTA(AB$71:AB$94), "",INDEX(AB:AB, SMALL(IF(AB$71:AB$94<>"", ROW($71:$94)), ROW(AA3)))) ->  | AD100: =IF(ROW(AD3)> COUNTA(AD$71:AD$94), "",INDEX(AD:AD, SMALL(IF(AD$71:AD$94<>"", ROW($71:$94)), ROW(AC3)))) ->  | AF100: =IF(ROW(AF3)> COUNTA(AF$71:AF$94), "",INDEX(AF:AF, SMALL(IF(AF$71:AF$94<>"", ROW($71:$94)), ROW(AE3)))) -> 
A101: Leerzeichen | B101: =IF(ROW(B4)> COUNTA(B$71:B$94), "",INDEX(B:B, SMALL(IF(B$71:B$94<>"", ROW($71:$94)), ROW(A4)))) -> .152 | D101: =IF(ROW(D4)> COUNTA(D$71:D$94), "",INDEX(D:D, SMALL(IF(D$71:D$94<>"", ROW($71:$94)), ROW(C4)))) -> .152 | F101: =IF(ROW(F4)> COUNTA(F$71:F$94), "",INDEX(F:F, SMALL(IF(F$71:F$94<>"", ROW($71:$94)), ROW(E4)))) -> .152 | H101: =IF(ROW(H4)> COUNTA(H$71:H$94), "",INDEX(H:H, SMALL(IF(H$71:H$94<>"", ROW($71:$94)), ROW(G4)))) -> .152 | J101: =IF(ROW(J4)> COUNTA(J$71:J$94), "",INDEX(J:J, SMALL(IF(J$71:J$94<>"", ROW($71:$94)), ROW(I4)))) -> .140 | L101: =IF(ROW(L4)> COUNTA(L$71:L$94), "",INDEX(L:L, SMALL(IF(L$71:L$94<>"", ROW($71:$94)), ROW(K4)))) -> .152 | N101: =IF(ROW(N4)> COUNTA(N$71:N$94), "",INDEX(N:N, SMALL(IF(N$71:N$94<>"", ROW($71:$94)), ROW(M4)))) -> .152 | P101: =IF(ROW(P4)> COUNTA(P$71:P$94), "",INDEX(P:P, SMALL(IF(P$71:P$94<>"", ROW($71:$94)), ROW(O4)))) -> .152 | R101: =IF(ROW(R4)> COUNTA(R$71:R$94), "",INDEX(R:R, SMALL(IF(R$71:R$94<>"", ROW($71:$94)), ROW(Q4)))) -> .152 | T101: =IF(ROW(T4)> COUNTA(T$71:T$94), "",INDEX(T:T, SMALL(IF(T$71:T$94<>"", ROW($71:$94)), ROW(S4)))) -> .152 | V101: =IF(ROW(V4)> COUNTA(V$71:V$94), "",INDEX(V:V, SMALL(IF(V$71:V$94<>"", ROW($71:$94)), ROW(U4)))) ->  | X101: =IF(ROW(X4)> COUNTA(X$71:X$94), "",INDEX(X:X, SMALL(IF(X$71:X$94<>"", ROW($71:$94)), ROW(W4)))) ->  | Z101: =IF(ROW(Z4)> COUNTA(Z$71:Z$94), "",INDEX(Z:Z, SMALL(IF(Z$71:Z$94<>"", ROW($71:$94)), ROW(Y4)))) ->  | AB101: =IF(ROW(AB4)> COUNTA(AB$71:AB$94), "",INDEX(AB:AB, SMALL(IF(AB$71:AB$94<>"", ROW($71:$94)), ROW(AA4)))) ->  | AD101: =IF(ROW(AD4)> COUNTA(AD$71:AD$94), "",INDEX(AD:AD, SMALL(IF(AD$71:AD$94<>"", ROW($71:$94)), ROW(AC4)))) ->  | AF101: =IF(ROW(AF4)> COUNTA(AF$71:AF$94), "",INDEX(AF:AF, SMALL(IF(AF$71:AF$94<>"", ROW($71:$94)), ROW(AE4)))) -> 
A102: entfernen | B102: =IF(ROW(B5)> COUNTA(B$71:B$94), "",INDEX(B:B, SMALL(IF(B$71:B$94<>"", ROW($71:$94)), ROW(A5)))) -> .164 | D102: =IF(ROW(D5)> COUNTA(D$71:D$94), "",INDEX(D:D, SMALL(IF(D$71:D$94<>"", ROW($71:$94)), ROW(C5)))) -> .164 | F102: =IF(ROW(F5)> COUNTA(F$71:F$94), "",INDEX(F:F, SMALL(IF(F$71:F$94<>"", ROW($71:$94)), ROW(E5)))) -> .164 | H102: =IF(ROW(H5)> COUNTA(H$71:H$94), "",INDEX(H:H, SMALL(IF(H$71:H$94<>"", ROW($71:$94)), ROW(G5)))) -> .164 | J102: =IF(ROW(J5)> COUNTA(J$71:J$94), "",INDEX(J:J, SMALL(IF(J$71:J$94<>"", ROW($71:$94)), ROW(I5)))) -> .152 | L102: =IF(ROW(L5)> COUNTA(L$71:L$94), "",INDEX(L:L, SMALL(IF(L$71:L$94<>"", ROW($71:$94)), ROW(K5)))) -> .164 | N102: =IF(ROW(N5)> COUNTA(N$71:N$94), "",INDEX(N:N, SMALL(IF(N$71:N$94<>"", ROW($71:$94)), ROW(M5)))) -> .164 | P102: =IF(ROW(P5)> COUNTA(P$71:P$94), "",INDEX(P:P, SMALL(IF(P$71:P$94<>"", ROW($71:$94)), ROW(O5)))) -> .164 | R102: =IF(ROW(R5)> COUNTA(R$71:R$94), "",INDEX(R:R, SMALL(IF(R$71:R$94<>"", ROW($71:$94)), ROW(Q5)))) -> .164 | T102: =IF(ROW(T5)> COUNTA(T$71:T$94), "",INDEX(T:T, SMALL(IF(T$71:T$94<>"", ROW($71:$94)), ROW(S5)))) -> .164 | V102: =IF(ROW(V5)> COUNTA(V$71:V$94), "",INDEX(V:V, SMALL(IF(V$71:V$94<>"", ROW($71:$94)), ROW(U5)))) ->  | X102: =IF(ROW(X5)> COUNTA(X$71:X$94), "",INDEX(X:X, SMALL(IF(X$71:X$94<>"", ROW($71:$94)), ROW(W5)))) ->  | Z102: =IF(ROW(Z5)> COUNTA(Z$71:Z$94), "",INDEX(Z:Z, SMALL(IF(Z$71:Z$94<>"", ROW($71:$94)), ROW(Y5)))) ->  | AB102: =IF(ROW(AB5)> COUNTA(AB$71:AB$94), "",INDEX(AB:AB, SMALL(IF(AB$71:AB$94<>"", ROW($71:$94)), ROW(AA5)))) ->  | AD102: =IF(ROW(AD5)> COUNTA(AD$71:AD$94), "",INDEX(AD:AD, SMALL(IF(AD$71:AD$94<>"", ROW($71:$94)), ROW(AC5)))) ->  | AF102: =IF(ROW(AF5)> COUNTA(AF$71:AF$94), "",INDEX(AF:AF, SMALL(IF(AF$71:AF$94<>"", ROW($71:$94)), ROW(AE5)))) -> 
B103: =IF(ROW(B6)> COUNTA(B$71:B$94), "",INDEX(B:B, SMALL(IF(B$71:B$94<>"", ROW($71:$94)), ROW(A6)))) -> .176 | D103: =IF(ROW(D6)> COUNTA(D$71:D$94), "",INDEX(D:D, SMALL(IF(D$71:D$94<>"", ROW($71:$94)), ROW(C6)))) -> S | F103: =IF(ROW(F6)> COUNTA(F$71:F$94), "",INDEX(F:F, SMALL(IF(F$71:F$94<>"", ROW($71:$94)), ROW(E6)))) -> .176 | H103: =IF(ROW(H6)> COUNTA(H$71:H$94), "",INDEX(H:H, SMALL(IF(H$71:H$94<>"", ROW($71:$94)), ROW(G6)))) -> .176 | J103: =IF(ROW(J6)> COUNTA(J$71:J$94), "",INDEX(J:J, SMALL(IF(J$71:J$94<>"", ROW($71:$94)), ROW(I6)))) -> .164 | L103: =IF(ROW(L6)> COUNTA(L$71:L$94), "",INDEX(L:L, SMALL(IF(L$71:L$94<>"", ROW($71:$94)), ROW(K6)))) -> .176 | N103: =IF(ROW(N6)> COUNTA(N$71:N$94), "",INDEX(N:N, SMALL(IF(N$71:N$94<>"", ROW($71:$94)), ROW(M6)))) -> .176 | P103: =IF(ROW(P6)> COUNTA(P$71:P$94), "",INDEX(P:P, SMALL(IF(P$71:P$94<>"", ROW($71:$94)), ROW(O6)))) -> .176 | R103: =IF(ROW(R6)> COUNTA(R$71:R$94), "",INDEX(R:R, SMALL(IF(R$71:R$94<>"", ROW($71:$94)), ROW(Q6)))) -> .176 | T103: =IF(ROW(T6)> COUNTA(T$71:T$94), "",INDEX(T:T, SMALL(IF(T$71:T$94<>"", ROW($71:$94)), ROW(S6)))) -> .176 | V103: =IF(ROW(V6)> COUNTA(V$71:V$94), "",INDEX(V:V, SMALL(IF(V$71:V$94<>"", ROW($71:$94)), ROW(U6)))) ->  | X103: =IF(ROW(X6)> COUNTA(X$71:X$94), "",INDEX(X:X, SMALL(IF(X$71:X$94<>"", ROW($71:$94)), ROW(W6)))) ->  | Z103: =IF(ROW(Z6)> COUNTA(Z$71:Z$94), "",INDEX(Z:Z, SMALL(IF(Z$71:Z$94<>"", ROW($71:$94)), ROW(Y6)))) ->  | AB103: =IF(ROW(AB6)> COUNTA(AB$71:AB$94), "",INDEX(AB:AB, SMALL(IF(AB$71:AB$94<>"", ROW($71:$94)), ROW(AA6)))) ->  | AD103: =IF(ROW(AD6)> COUNTA(AD$71:AD$94), "",INDEX(AD:AD, SMALL(IF(AD$71:AD$94<>"", ROW($71:$94)), ROW(AC6)))) ->  | AF103: =IF(ROW(AF6)> COUNTA(AF$71:AF$94), "",INDEX(AF:AF, SMALL(IF(AF$71:AF$94<>"", ROW($71:$94)), ROW(AE6)))) -> 
B104: =IF(ROW(B7)> COUNTA(B$71:B$94), "",INDEX(B:B, SMALL(IF(B$71:B$94<>"", ROW($71:$94)), ROW(A7)))) -> S | D104: =IF(ROW(D7)> COUNTA(D$71:D$94), "",INDEX(D:D, SMALL(IF(D$71:D$94<>"", ROW($71:$94)), ROW(C7)))) -> M | F104: =IF(ROW(F7)> COUNTA(F$71:F$94), "",INDEX(F:F, SMALL(IF(F$71:F$94<>"", ROW($71:$94)), ROW(E7)))) -> S | H104: =IF(ROW(H7)> COUNTA(H$71:H$94), "",INDEX(H:H, SMALL(IF(H$71:H$94<>"", ROW($71:$94)), ROW(G7)))) -> S | J104: =IF(ROW(J7)> COUNTA(J$71:J$94), "",INDEX(J:J, SMALL(IF(J$71:J$94<>"", ROW($71:$94)), ROW(I7)))) -> S | L104: =IF(ROW(L7)> COUNTA(L$71:L$94), "",INDEX(L:L, SMALL(IF(L$71:L$94<>"", ROW($71:$94)), ROW(K7)))) -> S | N104: =IF(ROW(N7)> COUNTA(N$71:N$94), "",INDEX(N:N, SMALL(IF(N$71:N$94<>"", ROW($71:$94)), ROW(M7)))) -> S | P104: =IF(ROW(P7)> COUNTA(P$71:P$94), "",INDEX(P:P, SMALL(IF(P$71:P$94<>"", ROW($71:$94)), ROW(O7)))) -> XS | R104: =IF(ROW(R7)> COUNTA(R$71:R$94), "",INDEX(R:R, SMALL(IF(R$71:R$94<>"", ROW($71:$94)), ROW(Q7)))) -> S | T104: =IF(ROW(T7)> COUNTA(T$71:T$94), "",INDEX(T:T, SMALL(IF(T$71:T$94<>"", ROW($71:$94)), ROW(S7)))) -> S | V104: =IF(ROW(V7)> COUNTA(V$71:V$94), "",INDEX(V:V, SMALL(IF(V$71:V$94<>"", ROW($71:$94)), ROW(U7)))) ->  | X104: =IF(ROW(X7)> COUNTA(X$71:X$94), "",INDEX(X:X, SMALL(IF(X$71:X$94<>"", ROW($71:$94)), ROW(W7)))) ->  | Z104: =IF(ROW(Z7)> COUNTA(Z$71:Z$94), "",INDEX(Z:Z, SMALL(IF(Z$71:Z$94<>"", ROW($71:$94)), ROW(Y7)))) ->  | AB104: =IF(ROW(AB7)> COUNTA(AB$71:AB$94), "",INDEX(AB:AB, SMALL(IF(AB$71:AB$94<>"", ROW($71:$94)), ROW(AA7)))) ->  | AD104: =IF(ROW(AD7)> COUNTA(AD$71:AD$94), "",INDEX(AD:AD, SMALL(IF(AD$71:AD$94<>"", ROW($71:$94)), ROW(AC7)))) ->  | AF104: =IF(ROW(AF7)> COUNTA(AF$71:AF$94), "",INDEX(AF:AF, SMALL(IF(AF$71:AF$94<>"", ROW($71:$94)), ROW(AE7)))) -> 
B105: =IF(ROW(B8)> COUNTA(B$71:B$94), "",INDEX(B:B, SMALL(IF(B$71:B$94<>"", ROW($71:$94)), ROW(A8)))) -> M | D105: =IF(ROW(D8)> COUNTA(D$71:D$94), "",INDEX(D:D, SMALL(IF(D$71:D$94<>"", ROW($71:$94)), ROW(C8)))) -> L | F105: =IF(ROW(F8)> COUNTA(F$71:F$94), "",INDEX(F:F, SMALL(IF(F$71:F$94<>"", ROW($71:$94)), ROW(E8)))) -> M | H105: =IF(ROW(H8)> COUNTA(H$71:H$94), "",INDEX(H:H, SMALL(IF(H$71:H$94<>"", ROW($71:$94)), ROW(G8)))) -> M | J105: =IF(ROW(J8)> COUNTA(J$71:J$94), "",INDEX(J:J, SMALL(IF(J$71:J$94<>"", ROW($71:$94)), ROW(I8)))) -> M | L105: =IF(ROW(L8)> COUNTA(L$71:L$94), "",INDEX(L:L, SMALL(IF(L$71:L$94<>"", ROW($71:$94)), ROW(K8)))) -> M | N105: =IF(ROW(N8)> COUNTA(N$71:N$94), "",INDEX(N:N, SMALL(IF(N$71:N$94<>"", ROW($71:$94)), ROW(M8)))) -> M | P105: =IF(ROW(P8)> COUNTA(P$71:P$94), "",INDEX(P:P, SMALL(IF(P$71:P$94<>"", ROW($71:$94)), ROW(O8)))) -> S | R105: =IF(ROW(R8)> COUNTA(R$71:R$94), "",INDEX(R:R, SMALL(IF(R$71:R$94<>"", ROW($71:$94)), ROW(Q8)))) -> M | T105: =IF(ROW(T8)> COUNTA(T$71:T$94), "",INDEX(T:T, SMALL(IF(T$71:T$94<>"", ROW($71:$94)), ROW(S8)))) -> M | V105: =IF(ROW(V8)> COUNTA(V$71:V$94), "",INDEX(V:V, SMALL(IF(V$71:V$94<>"", ROW($71:$94)), ROW(U8)))) ->  | X105: =IF(ROW(X8)> COUNTA(X$71:X$94), "",INDEX(X:X, SMALL(IF(X$71:X$94<>"", ROW($71:$94)), ROW(W8)))) ->  | Z105: =IF(ROW(Z8)> COUNTA(Z$71:Z$94), "",INDEX(Z:Z, SMALL(IF(Z$71:Z$94<>"", ROW($71:$94)), ROW(Y8)))) ->  | AB105: =IF(ROW(AB8)> COUNTA(AB$71:AB$94), "",INDEX(AB:AB, SMALL(IF(AB$71:AB$94<>"", ROW($71:$94)), ROW(AA8)))) ->  | AD105: =IF(ROW(AD8)> COUNTA(AD$71:AD$94), "",INDEX(AD:AD, SMALL(IF(AD$71:AD$94<>"", ROW($71:$94)), ROW(AC8)))) ->  | AF105: =IF(ROW(AF8)> COUNTA(AF$71:AF$94), "",INDEX(AF:AF, SMALL(IF(AF$71:AF$94<>"", ROW($71:$94)), ROW(AE8)))) -> 
B106: =IF(ROW(B9)> COUNTA(B$71:B$94), "",INDEX(B:B, SMALL(IF(B$71:B$94<>"", ROW($71:$94)), ROW(A9)))) -> L | D106: =IF(ROW(D9)> COUNTA(D$71:D$94), "",INDEX(D:D, SMALL(IF(D$71:D$94<>"", ROW($71:$94)), ROW(C9)))) -> XL | F106: =IF(ROW(F9)> COUNTA(F$71:F$94), "",INDEX(F:F, SMALL(IF(F$71:F$94<>"", ROW($71:$94)), ROW(E9)))) -> L | H106: =IF(ROW(H9)> COUNTA(H$71:H$94), "",INDEX(H:H, SMALL(IF(H$71:H$94<>"", ROW($71:$94)), ROW(G9)))) -> L | J106: =IF(ROW(J9)> COUNTA(J$71:J$94), "",INDEX(J:J, SMALL(IF(J$71:J$94<>"", ROW($71:$94)), ROW(I9)))) -> L | L106: =IF(ROW(L9)> COUNTA(L$71:L$94), "",INDEX(L:L, SMALL(IF(L$71:L$94<>"", ROW($71:$94)), ROW(K9)))) -> L | N106: =IF(ROW(N9)> COUNTA(N$71:N$94), "",INDEX(N:N, SMALL(IF(N$71:N$94<>"", ROW($71:$94)), ROW(M9)))) -> L | P106: =IF(ROW(P9)> COUNTA(P$71:P$94), "",INDEX(P:P, SMALL(IF(P$71:P$94<>"", ROW($71:$94)), ROW(O9)))) -> M | R106: =IF(ROW(R9)> COUNTA(R$71:R$94), "",INDEX(R:R, SMALL(IF(R$71:R$94<>"", ROW($71:$94)), ROW(Q9)))) -> L | T106: =IF(ROW(T9)> COUNTA(T$71:T$94), "",INDEX(T:T, SMALL(IF(T$71:T$94<>"", ROW($71:$94)), ROW(S9)))) -> L | V106: =IF(ROW(V9)> COUNTA(V$71:V$94), "",INDEX(V:V, SMALL(IF(V$71:V$94<>"", ROW($71:$94)), ROW(U9)))) ->  | X106: =IF(ROW(X9)> COUNTA(X$71:X$94), "",INDEX(X:X, SMALL(IF(X$71:X$94<>"", ROW($71:$94)), ROW(W9)))) ->  | Z106: =IF(ROW(Z9)> COUNTA(Z$71:Z$94), "",INDEX(Z:Z, SMALL(IF(Z$71:Z$94<>"", ROW($71:$94)), ROW(Y9)))) ->  | AB106: =IF(ROW(AB9)> COUNTA(AB$71:AB$94), "",INDEX(AB:AB, SMALL(IF(AB$71:AB$94<>"", ROW($71:$94)), ROW(AA9)))) ->  | AD106: =IF(ROW(AD9)> COUNTA(AD$71:AD$94), "",INDEX(AD:AD, SMALL(IF(AD$71:AD$94<>"", ROW($71:$94)), ROW(AC9)))) ->  | AF106: =IF(ROW(AF9)> COUNTA(AF$71:AF$94), "",INDEX(AF:AF, SMALL(IF(AF$71:AF$94<>"", ROW($71:$94)), ROW(AE9)))) -> 
B107: =IF(ROW(B10)> COUNTA(B$71:B$94), "",INDEX(B:B, SMALL(IF(B$71:B$94<>"", ROW($71:$94)), ROW(A10)))) -> XL | D107: =IF(ROW(D10)> COUNTA(D$71:D$94), "",INDEX(D:D, SMALL(IF(D$71:D$94<>"", ROW($71:$94)), ROW(C10)))) -> XXL | F107: =IF(ROW(F10)> COUNTA(F$71:F$94), "",INDEX(F:F, SMALL(IF(F$71:F$94<>"", ROW($71:$94)), ROW(E10)))) -> XL | H107: =IF(ROW(H10)> COUNTA(H$71:H$94), "",INDEX(H:H, SMALL(IF(H$71:H$94<>"", ROW($71:$94)), ROW(G10)))) -> XL | J107: =IF(ROW(J10)> COUNTA(J$71:J$94), "",INDEX(J:J, SMALL(IF(J$71:J$94<>"", ROW($71:$94)), ROW(I10)))) -> XL | L107: =IF(ROW(L10)> COUNTA(L$71:L$94), "",INDEX(L:L, SMALL(IF(L$71:L$94<>"", ROW($71:$94)), ROW(K10)))) -> XL | N107: =IF(ROW(N10)> COUNTA(N$71:N$94), "",INDEX(N:N, SMALL(IF(N$71:N$94<>"", ROW($71:$94)), ROW(M10)))) -> XL | P107: =IF(ROW(P10)> COUNTA(P$71:P$94), "",INDEX(P:P, SMALL(IF(P$71:P$94<>"", ROW($71:$94)), ROW(O10)))) -> L | R107: =IF(ROW(R10)> COUNTA(R$71:R$94), "",INDEX(R:R, SMALL(IF(R$71:R$94<>"", ROW($71:$94)), ROW(Q10)))) -> XL | T107: =IF(ROW(T10)> COUNTA(T$71:T$94), "",INDEX(T:T, SMALL(IF(T$71:T$94<>"", ROW($71:$94)), ROW(S10)))) -> XL | V107: =IF(ROW(V10)> COUNTA(V$71:V$94), "",INDEX(V:V, SMALL(IF(V$71:V$94<>"", ROW($71:$94)), ROW(U10)))) ->  | X107: =IF(ROW(X10)> COUNTA(X$71:X$94), "",INDEX(X:X, SMALL(IF(X$71:X$94<>"", ROW($71:$94)), ROW(W10)))) ->  | Z107: =IF(ROW(Z10)> COUNTA(Z$71:Z$94), "",INDEX(Z:Z, SMALL(IF(Z$71:Z$94<>"", ROW($71:$94)), ROW(Y10)))) ->  | AB107: =IF(ROW(AB10)> COUNTA(AB$71:AB$94), "",INDEX(AB:AB, SMALL(IF(AB$71:AB$94<>"", ROW($71:$94)), ROW(AA10)))) ->  | AD107: =IF(ROW(AD10)> COUNTA(AD$71:AD$94), "",INDEX(AD:AD, SMALL(IF(AD$71:AD$94<>"", ROW($71:$94)), ROW(AC10)))) ->  | AF107: =IF(ROW(AF10)> COUNTA(AF$71:AF$94), "",INDEX(AF:AF, SMALL(IF(AF$71:AF$94<>"", ROW($71:$94)), ROW(AE10)))) -> 
B108: =IF(ROW(B11)> COUNTA(B$71:B$94), "",INDEX(B:B, SMALL(IF(B$71:B$94<>"", ROW($71:$94)), ROW(A11)))) -> XXL | D108: =IF(ROW(D11)> COUNTA(D$71:D$94), "",INDEX(D:D, SMALL(IF(D$71:D$94<>"", ROW($71:$94)), ROW(C11)))) -> XXXL | F108: =IF(ROW(F11)> COUNTA(F$71:F$94), "",INDEX(F:F, SMALL(IF(F$71:F$94<>"", ROW($71:$94)), ROW(E11)))) -> XXL | H108: =IF(ROW(H11)> COUNTA(H$71:H$94), "",INDEX(H:H, SMALL(IF(H$71:H$94<>"", ROW($71:$94)), ROW(G11)))) -> XXL | J108: =IF(ROW(J11)> COUNTA(J$71:J$94), "",INDEX(J:J, SMALL(IF(J$71:J$94<>"", ROW($71:$94)), ROW(I11)))) -> XXL | L108: =IF(ROW(L11)> COUNTA(L$71:L$94), "",INDEX(L:L, SMALL(IF(L$71:L$94<>"", ROW($71:$94)), ROW(K11)))) -> XXL | N108: =IF(ROW(N11)> COUNTA(N$71:N$94), "",INDEX(N:N, SMALL(IF(N$71:N$94<>"", ROW($71:$94)), ROW(M11)))) -> XXL | P108: =IF(ROW(P11)> COUNTA(P$71:P$94), "",INDEX(P:P, SMALL(IF(P$71:P$94<>"", ROW($71:$94)), ROW(O11)))) -> XL | R108: =IF(ROW(R11)> COUNTA(R$71:R$94), "",INDEX(R:R, SMALL(IF(R$71:R$94<>"", ROW($71:$94)), ROW(Q11)))) -> XXL | T108: =IF(ROW(T11)> COUNTA(T$71:T$94), "",INDEX(T:T, SMALL(IF(T$71:T$94<>"", ROW($71:$94)), ROW(S11)))) -> XXL | V108: =IF(ROW(V11)> COUNTA(V$71:V$94), "",INDEX(V:V, SMALL(IF(V$71:V$94<>"", ROW($71:$94)), ROW(U11)))) ->  | X108: =IF(ROW(X11)> COUNTA(X$71:X$94), "",INDEX(X:X, SMALL(IF(X$71:X$94<>"", ROW($71:$94)), ROW(W11)))) ->  | Z108: =IF(ROW(Z11)> COUNTA(Z$71:Z$94), "",INDEX(Z:Z, SMALL(IF(Z$71:Z$94<>"", ROW($71:$94)), ROW(Y11)))) ->  | AB108: =IF(ROW(AB11)> COUNTA(AB$71:AB$94), "",INDEX(AB:AB, SMALL(IF(AB$71:AB$94<>"", ROW($71:$94)), ROW(AA11)))) ->  | AD108: =IF(ROW(AD11)> COUNTA(AD$71:AD$94), "",INDEX(AD:AD, SMALL(IF(AD$71:AD$94<>"", ROW($71:$94)), ROW(AC11)))) ->  | AF108: =IF(ROW(AF11)> COUNTA(AF$71:AF$94), "",INDEX(AF:AF, SMALL(IF(AF$71:AF$94<>"", ROW($71:$94)), ROW(AE11)))) -> 
B109: =IF(ROW(B12)> COUNTA(B$71:B$94), "",INDEX(B:B, SMALL(IF(B$71:B$94<>"", ROW($71:$94)), ROW(A12)))) -> XXXL | D109: =IF(ROW(D12)> COUNTA(D$71:D$94), "",INDEX(D:D, SMALL(IF(D$71:D$94<>"", ROW($71:$94)), ROW(C12)))) -> XS(W) | F109: =IF(ROW(F12)> COUNTA(F$71:F$94), "",INDEX(F:F, SMALL(IF(F$71:F$94<>"", ROW($71:$94)), ROW(E12)))) -> XXXL | H109: =IF(ROW(H12)> COUNTA(H$71:H$94), "",INDEX(H:H, SMALL(IF(H$71:H$94<>"", ROW($71:$94)), ROW(G12)))) -> XXXL | J109: =IF(ROW(J12)> COUNTA(J$71:J$94), "",INDEX(J:J, SMALL(IF(J$71:J$94<>"", ROW($71:$94)), ROW(I12)))) -> XXL | L109: =IF(ROW(L12)> COUNTA(L$71:L$94), "",INDEX(L:L, SMALL(IF(L$71:L$94<>"", ROW($71:$94)), ROW(K12)))) -> XXXL | N109: =IF(ROW(N12)> COUNTA(N$71:N$94), "",INDEX(N:N, SMALL(IF(N$71:N$94<>"", ROW($71:$94)), ROW(M12)))) -> XXXL | P109: =IF(ROW(P12)> COUNTA(P$71:P$94), "",INDEX(P:P, SMALL(IF(P$71:P$94<>"", ROW($71:$94)), ROW(O12)))) -> XXL | R109: =IF(ROW(R12)> COUNTA(R$71:R$94), "",INDEX(R:R, SMALL(IF(R$71:R$94<>"", ROW($71:$94)), ROW(Q12)))) -> XXXL | T109: =IF(ROW(T12)> COUNTA(T$71:T$94), "",INDEX(T:T, SMALL(IF(T$71:T$94<>"", ROW($71:$94)), ROW(S12)))) -> XXXL | V109: =IF(ROW(V12)> COUNTA(V$71:V$94), "",INDEX(V:V, SMALL(IF(V$71:V$94<>"", ROW($71:$94)), ROW(U12)))) ->  | X109: =IF(ROW(X12)> COUNTA(X$71:X$94), "",INDEX(X:X, SMALL(IF(X$71:X$94<>"", ROW($71:$94)), ROW(W12)))) ->  | Z109: =IF(ROW(Z12)> COUNTA(Z$71:Z$94), "",INDEX(Z:Z, SMALL(IF(Z$71:Z$94<>"", ROW($71:$94)), ROW(Y12)))) ->  | AB109: =IF(ROW(AB12)> COUNTA(AB$71:AB$94), "",INDEX(AB:AB, SMALL(IF(AB$71:AB$94<>"", ROW($71:$94)), ROW(AA12)))) ->  | AD109: =IF(ROW(AD12)> COUNTA(AD$71:AD$94), "",INDEX(AD:AD, SMALL(IF(AD$71:AD$94<>"", ROW($71:$94)), ROW(AC12)))) ->  | AF109: =IF(ROW(AF12)> COUNTA(AF$71:AF$94), "",INDEX(AF:AF, SMALL(IF(AF$71:AF$94<>"", ROW($71:$94)), ROW(AE12)))) -> 
B110: =IF(ROW(B13)> COUNTA(B$71:B$94), "",INDEX(B:B, SMALL(IF(B$71:B$94<>"", ROW($71:$94)), ROW(A13)))) ->  | D110: =IF(ROW(D13)> COUNTA(D$71:D$94), "",INDEX(D:D, SMALL(IF(D$71:D$94<>"", ROW($71:$94)), ROW(C13)))) -> S(W) | F110: =IF(ROW(F13)> COUNTA(F$71:F$94), "",INDEX(F:F, SMALL(IF(F$71:F$94<>"", ROW($71:$94)), ROW(E13)))) -> XS(W) | H110: =IF(ROW(H13)> COUNTA(H$71:H$94), "",INDEX(H:H, SMALL(IF(H$71:H$94<>"", ROW($71:$94)), ROW(G13)))) -> XS(W) | J110: =IF(ROW(J13)> COUNTA(J$71:J$94), "",INDEX(J:J, SMALL(IF(J$71:J$94<>"", ROW($71:$94)), ROW(I13)))) -> XS(W) | L110: =IF(ROW(L13)> COUNTA(L$71:L$94), "",INDEX(L:L, SMALL(IF(L$71:L$94<>"", ROW($71:$94)), ROW(K13)))) ->  | N110: =IF(ROW(N13)> COUNTA(N$71:N$94), "",INDEX(N:N, SMALL(IF(N$71:N$94<>"", ROW($71:$94)), ROW(M13)))) -> XS(W) | P110: =IF(ROW(P13)> COUNTA(P$71:P$94), "",INDEX(P:P, SMALL(IF(P$71:P$94<>"", ROW($71:$94)), ROW(O13)))) -> XXXL | R110: =IF(ROW(R13)> COUNTA(R$71:R$94), "",INDEX(R:R, SMALL(IF(R$71:R$94<>"", ROW($71:$94)), ROW(Q13)))) ->  | T110: =IF(ROW(T13)> COUNTA(T$71:T$94), "",INDEX(T:T, SMALL(IF(T$71:T$94<>"", ROW($71:$94)), ROW(S13)))) -> XS(W) | V110: =IF(ROW(V13)> COUNTA(V$71:V$94), "",INDEX(V:V, SMALL(IF(V$71:V$94<>"", ROW($71:$94)), ROW(U13)))) ->  | X110: =IF(ROW(X13)> COUNTA(X$71:X$94), "",INDEX(X:X, SMALL(IF(X$71:X$94<>"", ROW($71:$94)), ROW(W13)))) ->  | Z110: =IF(ROW(Z13)> COUNTA(Z$71:Z$94), "",INDEX(Z:Z, SMALL(IF(Z$71:Z$94<>"", ROW($71:$94)), ROW(Y13)))) ->  | AB110: =IF(ROW(AB13)> COUNTA(AB$71:AB$94), "",INDEX(AB:AB, SMALL(IF(AB$71:AB$94<>"", ROW($71:$94)), ROW(AA13)))) ->  | AD110: =IF(ROW(AD13)> COUNTA(AD$71:AD$94), "",INDEX(AD:AD, SMALL(IF(AD$71:AD$94<>"", ROW($71:$94)), ROW(AC13)))) ->  | AF110: =IF(ROW(AF13)> COUNTA(AF$71:AF$94), "",INDEX(AF:AF, SMALL(IF(AF$71:AF$94<>"", ROW($71:$94)), ROW(AE13)))) -> 
B111: =IF(ROW(B14)> COUNTA(B$71:B$94), "",INDEX(B:B, SMALL(IF(B$71:B$94<>"", ROW($71:$94)), ROW(A14)))) ->  | D111: =IF(ROW(D14)> COUNTA(D$71:D$94), "",INDEX(D:D, SMALL(IF(D$71:D$94<>"", ROW($71:$94)), ROW(C14)))) -> M(W) | F111: =IF(ROW(F14)> COUNTA(F$71:F$94), "",INDEX(F:F, SMALL(IF(F$71:F$94<>"", ROW($71:$94)), ROW(E14)))) -> S(W) | H111: =IF(ROW(H14)> COUNTA(H$71:H$94), "",INDEX(H:H, SMALL(IF(H$71:H$94<>"", ROW($71:$94)), ROW(G14)))) -> S(W) | J111: =IF(ROW(J14)> COUNTA(J$71:J$94), "",INDEX(J:J, SMALL(IF(J$71:J$94<>"", ROW($71:$94)), ROW(I14)))) -> S(W) | L111: =IF(ROW(L14)> COUNTA(L$71:L$94), "",INDEX(L:L, SMALL(IF(L$71:L$94<>"", ROW($71:$94)), ROW(K14)))) ->  | N111: =IF(ROW(N14)> COUNTA(N$71:N$94), "",INDEX(N:N, SMALL(IF(N$71:N$94<>"", ROW($71:$94)), ROW(M14)))) -> S(W) | P111: =IF(ROW(P14)> COUNTA(P$71:P$94), "",INDEX(P:P, SMALL(IF(P$71:P$94<>"", ROW($71:$94)), ROW(O14)))) ->  | R111: =IF(ROW(R14)> COUNTA(R$71:R$94), "",INDEX(R:R, SMALL(IF(R$71:R$94<>"", ROW($71:$94)), ROW(Q14)))) ->  | T111: =IF(ROW(T14)> COUNTA(T$71:T$94), "",INDEX(T:T, SMALL(IF(T$71:T$94<>"", ROW($71:$94)), ROW(S14)))) -> S(W) | V111: =IF(ROW(V14)> COUNTA(V$71:V$94), "",INDEX(V:V, SMALL(IF(V$71:V$94<>"", ROW($71:$94)), ROW(U14)))) ->  | X111: =IF(ROW(X14)> COUNTA(X$71:X$94), "",INDEX(X:X, SMALL(IF(X$71:X$94<>"", ROW($71:$94)), ROW(W14)))) ->  | Z111: =IF(ROW(Z14)> COUNTA(Z$71:Z$94), "",INDEX(Z:Z, SMALL(IF(Z$71:Z$94<>"", ROW($71:$94)), ROW(Y14)))) ->  | AB111: =IF(ROW(AB14)> COUNTA(AB$71:AB$94), "",INDEX(AB:AB, SMALL(IF(AB$71:AB$94<>"", ROW($71:$94)), ROW(AA14)))) ->  | AD111: =IF(ROW(AD14)> COUNTA(AD$71:AD$94), "",INDEX(AD:AD, SMALL(IF(AD$71:AD$94<>"", ROW($71:$94)), ROW(AC14)))) ->  | AF111: =IF(ROW(AF14)> COUNTA(AF$71:AF$94), "",INDEX(AF:AF, SMALL(IF(AF$71:AF$94<>"", ROW($71:$94)), ROW(AE14)))) -> 
B112: =IF(ROW(B15)> COUNTA(B$71:B$94), "",INDEX(B:B, SMALL(IF(B$71:B$94<>"", ROW($71:$94)), ROW(A15)))) ->  | D112: =IF(ROW(D15)> COUNTA(D$71:D$94), "",INDEX(D:D, SMALL(IF(D$71:D$94<>"", ROW($71:$94)), ROW(C15)))) -> L(W) | F112: =IF(ROW(F15)> COUNTA(F$71:F$94), "",INDEX(F:F, SMALL(IF(F$71:F$94<>"", ROW($71:$94)), ROW(E15)))) -> M(W) | H112: =IF(ROW(H15)> COUNTA(H$71:H$94), "",INDEX(H:H, SMALL(IF(H$71:H$94<>"", ROW($71:$94)), ROW(G15)))) -> M(W) | J112: =IF(ROW(J15)> COUNTA(J$71:J$94), "",INDEX(J:J, SMALL(IF(J$71:J$94<>"", ROW($71:$94)), ROW(I15)))) -> M(W) | L112: =IF(ROW(L15)> COUNTA(L$71:L$94), "",INDEX(L:L, SMALL(IF(L$71:L$94<>"", ROW($71:$94)), ROW(K15)))) ->  | N112: =IF(ROW(N15)> COUNTA(N$71:N$94), "",INDEX(N:N, SMALL(IF(N$71:N$94<>"", ROW($71:$94)), ROW(M15)))) -> M(W) | P112: =IF(ROW(P15)> COUNTA(P$71:P$94), "",INDEX(P:P, SMALL(IF(P$71:P$94<>"", ROW($71:$94)), ROW(O15)))) ->  | R112: =IF(ROW(R15)> COUNTA(R$71:R$94), "",INDEX(R:R, SMALL(IF(R$71:R$94<>"", ROW($71:$94)), ROW(Q15)))) ->  | T112: =IF(ROW(T15)> COUNTA(T$71:T$94), "",INDEX(T:T, SMALL(IF(T$71:T$94<>"", ROW($71:$94)), ROW(S15)))) -> M(W) | V112: =IF(ROW(V15)> COUNTA(V$71:V$94), "",INDEX(V:V, SMALL(IF(V$71:V$94<>"", ROW($71:$94)), ROW(U15)))) ->  | X112: =IF(ROW(X15)> COUNTA(X$71:X$94), "",INDEX(X:X, SMALL(IF(X$71:X$94<>"", ROW($71:$94)), ROW(W15)))) ->  | Z112: =IF(ROW(Z15)> COUNTA(Z$71:Z$94), "",INDEX(Z:Z, SMALL(IF(Z$71:Z$94<>"", ROW($71:$94)), ROW(Y15)))) ->  | AB112: =IF(ROW(AB15)> COUNTA(AB$71:AB$94), "",INDEX(AB:AB, SMALL(IF(AB$71:AB$94<>"", ROW($71:$94)), ROW(AA15)))) ->  | AD112: =IF(ROW(AD15)> COUNTA(AD$71:AD$94), "",INDEX(AD:AD, SMALL(IF(AD$71:AD$94<>"", ROW($71:$94)), ROW(AC15)))) ->  | AF112: =IF(ROW(AF15)> COUNTA(AF$71:AF$94), "",INDEX(AF:AF, SMALL(IF(AF$71:AF$94<>"", ROW($71:$94)), ROW(AE15)))) -> 
B113: =IF(ROW(B16)> COUNTA(B$71:B$94), "",INDEX(B:B, SMALL(IF(B$71:B$94<>"", ROW($71:$94)), ROW(A16)))) ->  | D113: =IF(ROW(D16)> COUNTA(D$71:D$94), "",INDEX(D:D, SMALL(IF(D$71:D$94<>"", ROW($71:$94)), ROW(C16)))) -> XL(W) | F113: =IF(ROW(F16)> COUNTA(F$71:F$94), "",INDEX(F:F, SMALL(IF(F$71:F$94<>"", ROW($71:$94)), ROW(E16)))) -> L(W) | H113: =IF(ROW(H16)> COUNTA(H$71:H$94), "",INDEX(H:H, SMALL(IF(H$71:H$94<>"", ROW($71:$94)), ROW(G16)))) -> L(W) | J113: =IF(ROW(J16)> COUNTA(J$71:J$94), "",INDEX(J:J, SMALL(IF(J$71:J$94<>"", ROW($71:$94)), ROW(I16)))) -> L(W) | L113: =IF(ROW(L16)> COUNTA(L$71:L$94), "",INDEX(L:L, SMALL(IF(L$71:L$94<>"", ROW($71:$94)), ROW(K16)))) ->  | N113: =IF(ROW(N16)> COUNTA(N$71:N$94), "",INDEX(N:N, SMALL(IF(N$71:N$94<>"", ROW($71:$94)), ROW(M16)))) -> L(W) | P113: =IF(ROW(P16)> COUNTA(P$71:P$94), "",INDEX(P:P, SMALL(IF(P$71:P$94<>"", ROW($71:$94)), ROW(O16)))) ->  | R113: =IF(ROW(R16)> COUNTA(R$71:R$94), "",INDEX(R:R, SMALL(IF(R$71:R$94<>"", ROW($71:$94)), ROW(Q16)))) ->  | T113: =IF(ROW(T16)> COUNTA(T$71:T$94), "",INDEX(T:T, SMALL(IF(T$71:T$94<>"", ROW($71:$94)), ROW(S16)))) -> L(W) | V113: =IF(ROW(V16)> COUNTA(V$71:V$94), "",INDEX(V:V, SMALL(IF(V$71:V$94<>"", ROW($71:$94)), ROW(U16)))) ->  | X113: =IF(ROW(X16)> COUNTA(X$71:X$94), "",INDEX(X:X, SMALL(IF(X$71:X$94<>"", ROW($71:$94)), ROW(W16)))) ->  | Z113: =IF(ROW(Z16)> COUNTA(Z$71:Z$94), "",INDEX(Z:Z, SMALL(IF(Z$71:Z$94<>"", ROW($71:$94)), ROW(Y16)))) ->  | AB113: =IF(ROW(AB16)> COUNTA(AB$71:AB$94), "",INDEX(AB:AB, SMALL(IF(AB$71:AB$94<>"", ROW($71:$94)), ROW(AA16)))) ->  | AD113: =IF(ROW(AD16)> COUNTA(AD$71:AD$94), "",INDEX(AD:AD, SMALL(IF(AD$71:AD$94<>"", ROW($71:$94)), ROW(AC16)))) ->  | AF113: =IF(ROW(AF16)> COUNTA(AF$71:AF$94), "",INDEX(AF:AF, SMALL(IF(AF$71:AF$94<>"", ROW($71:$94)), ROW(AE16)))) -> 
B114: =IF(ROW(B17)> COUNTA(B$71:B$94), "",INDEX(B:B, SMALL(IF(B$71:B$94<>"", ROW($71:$94)), ROW(A17)))) ->  | D114: =IF(ROW(D17)> COUNTA(D$71:D$94), "",INDEX(D:D, SMALL(IF(D$71:D$94<>"", ROW($71:$94)), ROW(C17)))) -> XXL(W) | F114: =IF(ROW(F17)> COUNTA(F$71:F$94), "",INDEX(F:F, SMALL(IF(F$71:F$94<>"", ROW($71:$94)), ROW(E17)))) -> XL(W) | H114: =IF(ROW(H17)> COUNTA(H$71:H$94), "",INDEX(H:H, SMALL(IF(H$71:H$94<>"", ROW($71:$94)), ROW(G17)))) -> XL(W) | J114: =IF(ROW(J17)> COUNTA(J$71:J$94), "",INDEX(J:J, SMALL(IF(J$71:J$94<>"", ROW($71:$94)), ROW(I17)))) -> XL(W) | L114: =IF(ROW(L17)> COUNTA(L$71:L$94), "",INDEX(L:L, SMALL(IF(L$71:L$94<>"", ROW($71:$94)), ROW(K17)))) ->  | N114: =IF(ROW(N17)> COUNTA(N$71:N$94), "",INDEX(N:N, SMALL(IF(N$71:N$94<>"", ROW($71:$94)), ROW(M17)))) -> XL(W) | P114: =IF(ROW(P17)> COUNTA(P$71:P$94), "",INDEX(P:P, SMALL(IF(P$71:P$94<>"", ROW($71:$94)), ROW(O17)))) ->  | R114: =IF(ROW(R17)> COUNTA(R$71:R$94), "",INDEX(R:R, SMALL(IF(R$71:R$94<>"", ROW($71:$94)), ROW(Q17)))) ->  | T114: =IF(ROW(T17)> COUNTA(T$71:T$94), "",INDEX(T:T, SMALL(IF(T$71:T$94<>"", ROW($71:$94)), ROW(S17)))) -> XL(W) | V114: =IF(ROW(V17)> COUNTA(V$71:V$94), "",INDEX(V:V, SMALL(IF(V$71:V$94<>"", ROW($71:$94)), ROW(U17)))) ->  | X114: =IF(ROW(X17)> COUNTA(X$71:X$94), "",INDEX(X:X, SMALL(IF(X$71:X$94<>"", ROW($71:$94)), ROW(W17)))) ->  | Z114: =IF(ROW(Z17)> COUNTA(Z$71:Z$94), "",INDEX(Z:Z, SMALL(IF(Z$71:Z$94<>"", ROW($71:$94)), ROW(Y17)))) ->  | AB114: =IF(ROW(AB17)> COUNTA(AB$71:AB$94), "",INDEX(AB:AB, SMALL(IF(AB$71:AB$94<>"", ROW($71:$94)), ROW(AA17)))) ->  | AD114: =IF(ROW(AD17)> COUNTA(AD$71:AD$94), "",INDEX(AD:AD, SMALL(IF(AD$71:AD$94<>"", ROW($71:$94)), ROW(AC17)))) ->  | AF114: =IF(ROW(AF17)> COUNTA(AF$71:AF$94), "",INDEX(AF:AF, SMALL(IF(AF$71:AF$94<>"", ROW($71:$94)), ROW(AE17)))) -> 
B115: =IF(ROW(B18)> COUNTA(B$71:B$94), "",INDEX(B:B, SMALL(IF(B$71:B$94<>"", ROW($71:$94)), ROW(A18)))) ->  | D115: =IF(ROW(D18)> COUNTA(D$71:D$94), "",INDEX(D:D, SMALL(IF(D$71:D$94<>"", ROW($71:$94)), ROW(C18)))) ->  | F115: =IF(ROW(F18)> COUNTA(F$71:F$94), "",INDEX(F:F, SMALL(IF(F$71:F$94<>"", ROW($71:$94)), ROW(E18)))) -> XXL(W) | H115: =IF(ROW(H18)> COUNTA(H$71:H$94), "",INDEX(H:H, SMALL(IF(H$71:H$94<>"", ROW($71:$94)), ROW(G18)))) -> XXL(W) | J115: =IF(ROW(J18)> COUNTA(J$71:J$94), "",INDEX(J:J, SMALL(IF(J$71:J$94<>"", ROW($71:$94)), ROW(I18)))) -> XXL(W) | L115: =IF(ROW(L18)> COUNTA(L$71:L$94), "",INDEX(L:L, SMALL(IF(L$71:L$94<>"", ROW($71:$94)), ROW(K18)))) ->  | N115: =IF(ROW(N18)> COUNTA(N$71:N$94), "",INDEX(N:N, SMALL(IF(N$71:N$94<>"", ROW($71:$94)), ROW(M18)))) -> XXL(W) | P115: =IF(ROW(P18)> COUNTA(P$71:P$94), "",INDEX(P:P, SMALL(IF(P$71:P$94<>"", ROW($71:$94)), ROW(O18)))) ->  | R115: =IF(ROW(R18)> COUNTA(R$71:R$94), "",INDEX(R:R, SMALL(IF(R$71:R$94<>"", ROW($71:$94)), ROW(Q18)))) ->  | T115: =IF(ROW(T18)> COUNTA(T$71:T$94), "",INDEX(T:T, SMALL(IF(T$71:T$94<>"", ROW($71:$94)), ROW(S18)))) -> XXL(W) | V115: =IF(ROW(V18)> COUNTA(V$71:V$94), "",INDEX(V:V, SMALL(IF(V$71:V$94<>"", ROW($71:$94)), ROW(U18)))) ->  | X115: =IF(ROW(X18)> COUNTA(X$71:X$94), "",INDEX(X:X, SMALL(IF(X$71:X$94<>"", ROW($71:$94)), ROW(W18)))) ->  | Z115: =IF(ROW(Z18)> COUNTA(Z$71:Z$94), "",INDEX(Z:Z, SMALL(IF(Z$71:Z$94<>"", ROW($71:$94)), ROW(Y18)))) ->  | AB115: =IF(ROW(AB18)> COUNTA(AB$71:AB$94), "",INDEX(AB:AB, SMALL(IF(AB$71:AB$94<>"", ROW($71:$94)), ROW(AA18)))) ->  | AD115: =IF(ROW(AD18)> COUNTA(AD$71:AD$94), "",INDEX(AD:AD, SMALL(IF(AD$71:AD$94<>"", ROW($71:$94)), ROW(AC18)))) ->  | AF115: =IF(ROW(AF18)> COUNTA(AF$71:AF$94), "",INDEX(AF:AF, SMALL(IF(AF$71:AF$94<>"", ROW($71:$94)), ROW(AE18)))) -> 
B116: =IF(ROW(B19)> COUNTA(B$71:B$94), "",INDEX(B:B, SMALL(IF(B$71:B$94<>"", ROW($71:$94)), ROW(A19)))) ->  | D116: =IF(ROW(D19)> COUNTA(D$71:D$94), "",INDEX(D:D, SMALL(IF(D$71:D$94<>"", ROW($71:$94)), ROW(C19)))) ->  | F116: =IF(ROW(F19)> COUNTA(F$71:F$94), "",INDEX(F:F, SMALL(IF(F$71:F$94<>"", ROW($71:$94)), ROW(E19)))) ->  | H116: =IF(ROW(H19)> COUNTA(H$71:H$94), "",INDEX(H:H, SMALL(IF(H$71:H$94<>"", ROW($71:$94)), ROW(G19)))) ->  | J116: =IF(ROW(J19)> COUNTA(J$71:J$94), "",INDEX(J:J, SMALL(IF(J$71:J$94<>"", ROW($71:$94)), ROW(I19)))) ->  | L116: =IF(ROW(L19)> COUNTA(L$71:L$94), "",INDEX(L:L, SMALL(IF(L$71:L$94<>"", ROW($71:$94)), ROW(K19)))) ->  | N116: =IF(ROW(N19)> COUNTA(N$71:N$94), "",INDEX(N:N, SMALL(IF(N$71:N$94<>"", ROW($71:$94)), ROW(M19)))) ->  | P116: =IF(ROW(P19)> COUNTA(P$71:P$94), "",INDEX(P:P, SMALL(IF(P$71:P$94<>"", ROW($71:$94)), ROW(O19)))) ->  | R116: =IF(ROW(R19)> COUNTA(R$71:R$94), "",INDEX(R:R, SMALL(IF(R$71:R$94<>"", ROW($71:$94)), ROW(Q19)))) ->  | T116: =IF(ROW(T19)> COUNTA(T$71:T$94), "",INDEX(T:T, SMALL(IF(T$71:T$94<>"", ROW($71:$94)), ROW(S19)))) ->  | V116: =IF(ROW(V19)> COUNTA(V$71:V$94), "",INDEX(V:V, SMALL(IF(V$71:V$94<>"", ROW($71:$94)), ROW(U19)))) ->  | X116: =IF(ROW(X19)> COUNTA(X$71:X$94), "",INDEX(X:X, SMALL(IF(X$71:X$94<>"", ROW($71:$94)), ROW(W19)))) ->  | Z116: =IF(ROW(Z19)> COUNTA(Z$71:Z$94), "",INDEX(Z:Z, SMALL(IF(Z$71:Z$94<>"", ROW($71:$94)), ROW(Y19)))) ->  | AB116: =IF(ROW(AB19)> COUNTA(AB$71:AB$94), "",INDEX(AB:AB, SMALL(IF(AB$71:AB$94<>"", ROW($71:$94)), ROW(AA19)))) ->  | AD116: =IF(ROW(AD19)> COUNTA(AD$71:AD$94), "",INDEX(AD:AD, SMALL(IF(AD$71:AD$94<>"", ROW($71:$94)), ROW(AC19)))) ->  | AF116: =IF(ROW(AF19)> COUNTA(AF$71:AF$94), "",INDEX(AF:AF, SMALL(IF(AF$71:AF$94<>"", ROW($71:$94)), ROW(AE19)))) -> 
B117: =IF(ROW(B20)> COUNTA(B$71:B$94), "",INDEX(B:B, SMALL(IF(B$71:B$94<>"", ROW($71:$94)), ROW(A20)))) ->  | D117: =IF(ROW(D20)> COUNTA(D$71:D$94), "",INDEX(D:D, SMALL(IF(D$71:D$94<>"", ROW($71:$94)), ROW(C20)))) ->  | F117: =IF(ROW(F20)> COUNTA(F$71:F$94), "",INDEX(F:F, SMALL(IF(F$71:F$94<>"", ROW($71:$94)), ROW(E20)))) ->  | H117: =IF(ROW(H20)> COUNTA(H$71:H$94), "",INDEX(H:H, SMALL(IF(H$71:H$94<>"", ROW($71:$94)), ROW(G20)))) ->  | J117: =IF(ROW(J20)> COUNTA(J$71:J$94), "",INDEX(J:J, SMALL(IF(J$71:J$94<>"", ROW($71:$94)), ROW(I20)))) ->  | L117: =IF(ROW(L20)> COUNTA(L$71:L$94), "",INDEX(L:L, SMALL(IF(L$71:L$94<>"", ROW($71:$94)), ROW(K20)))) ->  | N117: =IF(ROW(N20)> COUNTA(N$71:N$94), "",INDEX(N:N, SMALL(IF(N$71:N$94<>"", ROW($71:$94)), ROW(M20)))) ->  | P117: =IF(ROW(P20)> COUNTA(P$71:P$94), "",INDEX(P:P, SMALL(IF(P$71:P$94<>"", ROW($71:$94)), ROW(O20)))) ->  | R117: =IF(ROW(R20)> COUNTA(R$71:R$94), "",INDEX(R:R, SMALL(IF(R$71:R$94<>"", ROW($71:$94)), ROW(Q20)))) ->  | T117: =IF(ROW(T20)> COUNTA(T$71:T$94), "",INDEX(T:T, SMALL(IF(T$71:T$94<>"", ROW($71:$94)), ROW(S20)))) ->  | V117: =IF(ROW(V20)> COUNTA(V$71:V$94), "",INDEX(V:V, SMALL(IF(V$71:V$94<>"", ROW($71:$94)), ROW(U20)))) ->  | X117: =IF(ROW(X20)> COUNTA(X$71:X$94), "",INDEX(X:X, SMALL(IF(X$71:X$94<>"", ROW($71:$94)), ROW(W20)))) ->  | Z117: =IF(ROW(Z20)> COUNTA(Z$71:Z$94), "",INDEX(Z:Z, SMALL(IF(Z$71:Z$94<>"", ROW($71:$94)), ROW(Y20)))) ->  | AB117: =IF(ROW(AB20)> COUNTA(AB$71:AB$94), "",INDEX(AB:AB, SMALL(IF(AB$71:AB$94<>"", ROW($71:$94)), ROW(AA20)))) ->  | AD117: =IF(ROW(AD20)> COUNTA(AD$71:AD$94), "",INDEX(AD:AD, SMALL(IF(AD$71:AD$94<>"", ROW($71:$94)), ROW(AC20)))) ->  | AF117: =IF(ROW(AF20)> COUNTA(AF$71:AF$94), "",INDEX(AF:AF, SMALL(IF(AF$71:AF$94<>"", ROW($71:$94)), ROW(AE20)))) -> 
B118: =IF(ROW(B21)> COUNTA(B$71:B$94), "",INDEX(B:B, SMALL(IF(B$71:B$94<>"", ROW($71:$94)), ROW(A21)))) ->  | D118: =IF(ROW(D21)> COUNTA(D$71:D$94), "",INDEX(D:D, SMALL(IF(D$71:D$94<>"", ROW($71:$94)), ROW(C21)))) ->  | F118: =IF(ROW(F21)> COUNTA(F$71:F$94), "",INDEX(F:F, SMALL(IF(F$71:F$94<>"", ROW($71:$94)), ROW(E21)))) ->  | H118: =IF(ROW(H21)> COUNTA(H$71:H$94), "",INDEX(H:H, SMALL(IF(H$71:H$94<>"", ROW($71:$94)), ROW(G21)))) ->  | J118: =IF(ROW(J21)> COUNTA(J$71:J$94), "",INDEX(J:J, SMALL(IF(J$71:J$94<>"", ROW($71:$94)), ROW(I21)))) ->  | L118: =IF(ROW(L21)> COUNTA(L$71:L$94), "",INDEX(L:L, SMALL(IF(L$71:L$94<>"", ROW($71:$94)), ROW(K21)))) ->  | N118: =IF(ROW(N21)> COUNTA(N$71:N$94), "",INDEX(N:N, SMALL(IF(N$71:N$94<>"", ROW($71:$94)), ROW(M21)))) ->  | P118: =IF(ROW(P21)> COUNTA(P$71:P$94), "",INDEX(P:P, SMALL(IF(P$71:P$94<>"", ROW($71:$94)), ROW(O21)))) ->  | R118: =IF(ROW(R21)> COUNTA(R$71:R$94), "",INDEX(R:R, SMALL(IF(R$71:R$94<>"", ROW($71:$94)), ROW(Q21)))) ->  | T118: =IF(ROW(T21)> COUNTA(T$71:T$94), "",INDEX(T:T, SMALL(IF(T$71:T$94<>"", ROW($71:$94)), ROW(S21)))) ->  | V118: =IF(ROW(V21)> COUNTA(V$71:V$94), "",INDEX(V:V, SMALL(IF(V$71:V$94<>"", ROW($71:$94)), ROW(U21)))) ->  | X118: =IF(ROW(X21)> COUNTA(X$71:X$94), "",INDEX(X:X, SMALL(IF(X$71:X$94<>"", ROW($71:$94)), ROW(W21)))) ->  | Z118: =IF(ROW(Z21)> COUNTA(Z$71:Z$94), "",INDEX(Z:Z, SMALL(IF(Z$71:Z$94<>"", ROW($71:$94)), ROW(Y21)))) ->  | AB118: =IF(ROW(AB21)> COUNTA(AB$71:AB$94), "",INDEX(AB:AB, SMALL(IF(AB$71:AB$94<>"", ROW($71:$94)), ROW(AA21)))) ->  | AD118: =IF(ROW(AD21)> COUNTA(AD$71:AD$94), "",INDEX(AD:AD, SMALL(IF(AD$71:AD$94<>"", ROW($71:$94)), ROW(AC21)))) ->  | AF118: =IF(ROW(AF21)> COUNTA(AF$71:AF$94), "",INDEX(AF:AF, SMALL(IF(AF$71:AF$94<>"", ROW($71:$94)), ROW(AE21)))) -> 
B119: =IF(ROW(B22)> COUNTA(B$71:B$94), "",INDEX(B:B, SMALL(IF(B$71:B$94<>"", ROW($71:$94)), ROW(A22)))) ->  | D119: =IF(ROW(D22)> COUNTA(D$71:D$94), "",INDEX(D:D, SMALL(IF(D$71:D$94<>"", ROW($71:$94)), ROW(C22)))) ->  | F119: =IF(ROW(F22)> COUNTA(F$71:F$94), "",INDEX(F:F, SMALL(IF(F$71:F$94<>"", ROW($71:$94)), ROW(E22)))) ->  | H119: =IF(ROW(H22)> COUNTA(H$71:H$94), "",INDEX(H:H, SMALL(IF(H$71:H$94<>"", ROW($71:$94)), ROW(G22)))) ->  | J119: =IF(ROW(J22)> COUNTA(J$71:J$94), "",INDEX(J:J, SMALL(IF(J$71:J$94<>"", ROW($71:$94)), ROW(I22)))) ->  | L119: =IF(ROW(L22)> COUNTA(L$71:L$94), "",INDEX(L:L, SMALL(IF(L$71:L$94<>"", ROW($71:$94)), ROW(K22)))) ->  | N119: =IF(ROW(N22)> COUNTA(N$71:N$94), "",INDEX(N:N, SMALL(IF(N$71:N$94<>"", ROW($71:$94)), ROW(M22)))) ->  | P119: =IF(ROW(P22)> COUNTA(P$71:P$94), "",INDEX(P:P, SMALL(IF(P$71:P$94<>"", ROW($71:$94)), ROW(O22)))) ->  | R119: =IF(ROW(R22)> COUNTA(R$71:R$94), "",INDEX(R:R, SMALL(IF(R$71:R$94<>"", ROW($71:$94)), ROW(Q22)))) ->  | T119: =IF(ROW(T22)> COUNTA(T$71:T$94), "",INDEX(T:T, SMALL(IF(T$71:T$94<>"", ROW($71:$94)), ROW(S22)))) ->  | V119: =IF(ROW(V22)> COUNTA(V$71:V$94), "",INDEX(V:V, SMALL(IF(V$71:V$94<>"", ROW($71:$94)), ROW(U22)))) ->  | X119: =IF(ROW(X22)> COUNTA(X$71:X$94), "",INDEX(X:X, SMALL(IF(X$71:X$94<>"", ROW($71:$94)), ROW(W22)))) ->  | Z119: =IF(ROW(Z22)> COUNTA(Z$71:Z$94), "",INDEX(Z:Z, SMALL(IF(Z$71:Z$94<>"", ROW($71:$94)), ROW(Y22)))) ->  | AB119: =IF(ROW(AB22)> COUNTA(AB$71:AB$94), "",INDEX(AB:AB, SMALL(IF(AB$71:AB$94<>"", ROW($71:$94)), ROW(AA22)))) ->  | AD119: =IF(ROW(AD22)> COUNTA(AD$71:AD$94), "",INDEX(AD:AD, SMALL(IF(AD$71:AD$94<>"", ROW($71:$94)), ROW(AC22)))) ->  | AF119: =IF(ROW(AF22)> COUNTA(AF$71:AF$94), "",INDEX(AF:AF, SMALL(IF(AF$71:AF$94<>"", ROW($71:$94)), ROW(AE22)))) -> 
B120: =IF(ROW(B23)> COUNTA(B$71:B$94), "",INDEX(B:B, SMALL(IF(B$71:B$94<>"", ROW($71:$94)), ROW(A23)))) ->  | D120: =IF(ROW(D23)> COUNTA(D$71:D$94), "",INDEX(D:D, SMALL(IF(D$71:D$94<>"", ROW($71:$94)), ROW(C23)))) ->  | F120: =IF(ROW(F23)> COUNTA(F$71:F$94), "",INDEX(F:F, SMALL(IF(F$71:F$94<>"", ROW($71:$94)), ROW(E23)))) ->  | H120: =IF(ROW(H23)> COUNTA(H$71:H$94), "",INDEX(H:H, SMALL(IF(H$71:H$94<>"", ROW($71:$94)), ROW(G23)))) ->  | J120: =IF(ROW(J23)> COUNTA(J$71:J$94), "",INDEX(J:J, SMALL(IF(J$71:J$94<>"", ROW($71:$94)), ROW(I23)))) ->  | L120: =IF(ROW(L23)> COUNTA(L$71:L$94), "",INDEX(L:L, SMALL(IF(L$71:L$94<>"", ROW($71:$94)), ROW(K23)))) ->  | N120: =IF(ROW(N23)> COUNTA(N$71:N$94), "",INDEX(N:N, SMALL(IF(N$71:N$94<>"", ROW($71:$94)), ROW(M23)))) ->  | P120: =IF(ROW(P23)> COUNTA(P$71:P$94), "",INDEX(P:P, SMALL(IF(P$71:P$94<>"", ROW($71:$94)), ROW(O23)))) ->  | R120: =IF(ROW(R23)> COUNTA(R$71:R$94), "",INDEX(R:R, SMALL(IF(R$71:R$94<>"", ROW($71:$94)), ROW(Q23)))) ->  | T120: =IF(ROW(T23)> COUNTA(T$71:T$94), "",INDEX(T:T, SMALL(IF(T$71:T$94<>"", ROW($71:$94)), ROW(S23)))) ->  | V120: =IF(ROW(V23)> COUNTA(V$71:V$94), "",INDEX(V:V, SMALL(IF(V$71:V$94<>"", ROW($71:$94)), ROW(U23)))) ->  | X120: =IF(ROW(X23)> COUNTA(X$71:X$94), "",INDEX(X:X, SMALL(IF(X$71:X$94<>"", ROW($71:$94)), ROW(W23)))) ->  | Z120: =IF(ROW(Z23)> COUNTA(Z$71:Z$94), "",INDEX(Z:Z, SMALL(IF(Z$71:Z$94<>"", ROW($71:$94)), ROW(Y23)))) ->  | AB120: =IF(ROW(AB23)> COUNTA(AB$71:AB$94), "",INDEX(AB:AB, SMALL(IF(AB$71:AB$94<>"", ROW($71:$94)), ROW(AA23)))) ->  | AD120: =IF(ROW(AD23)> COUNTA(AD$71:AD$94), "",INDEX(AD:AD, SMALL(IF(AD$71:AD$94<>"", ROW($71:$94)), ROW(AC23)))) ->  | AF120: =IF(ROW(AF23)> COUNTA(AF$71:AF$94), "",INDEX(AF:AF, SMALL(IF(AF$71:AF$94<>"", ROW($71:$94)), ROW(AE23)))) -> 
B121: =IF(ROW(B24)> COUNTA(B$71:B$94), "",INDEX(B:B, SMALL(IF(B$71:B$94<>"", ROW($71:$94)), ROW(A24)))) ->  | D121: =IF(ROW(D24)> COUNTA(D$71:D$94), "",INDEX(D:D, SMALL(IF(D$71:D$94<>"", ROW($71:$94)), ROW(C24)))) ->  | F121: =IF(ROW(F24)> COUNTA(F$71:F$94), "",INDEX(F:F, SMALL(IF(F$71:F$94<>"", ROW($71:$94)), ROW(E24)))) ->  | H121: =IF(ROW(H24)> COUNTA(H$71:H$94), "",INDEX(H:H, SMALL(IF(H$71:H$94<>"", ROW($71:$94)), ROW(G24)))) ->  | J121: =IF(ROW(J24)> COUNTA(J$71:J$94), "",INDEX(J:J, SMALL(IF(J$71:J$94<>"", ROW($71:$94)), ROW(I24)))) ->  | L121: =IF(ROW(L24)> COUNTA(L$71:L$94), "",INDEX(L:L, SMALL(IF(L$71:L$94<>"", ROW($71:$94)), ROW(K24)))) ->  | N121: =IF(ROW(N24)> COUNTA(N$71:N$94), "",INDEX(N:N, SMALL(IF(N$71:N$94<>"", ROW($71:$94)), ROW(M24)))) ->  | P121: =IF(ROW(P24)> COUNTA(P$71:P$94), "",INDEX(P:P, SMALL(IF(P$71:P$94<>"", ROW($71:$94)), ROW(O24)))) ->  | R121: =IF(ROW(R24)> COUNTA(R$71:R$94), "",INDEX(R:R, SMALL(IF(R$71:R$94<>"", ROW($71:$94)), ROW(Q24)))) ->  | T121: =IF(ROW(T24)> COUNTA(T$71:T$94), "",INDEX(T:T, SMALL(IF(T$71:T$94<>"", ROW($71:$94)), ROW(S24)))) ->  | V121: =IF(ROW(V24)> COUNTA(V$71:V$94), "",INDEX(V:V, SMALL(IF(V$71:V$94<>"", ROW($71:$94)), ROW(U24)))) ->  | X121: =IF(ROW(X24)> COUNTA(X$71:X$94), "",INDEX(X:X, SMALL(IF(X$71:X$94<>"", ROW($71:$94)), ROW(W24)))) ->  | Z121: =IF(ROW(Z24)> COUNTA(Z$71:Z$94), "",INDEX(Z:Z, SMALL(IF(Z$71:Z$94<>"", ROW($71:$94)), ROW(Y24)))) ->  | AB121: =IF(ROW(AB24)> COUNTA(AB$71:AB$94), "",INDEX(AB:AB, SMALL(IF(AB$71:AB$94<>"", ROW($71:$94)), ROW(AA24)))) ->  | AD121: =IF(ROW(AD24)> COUNTA(AD$71:AD$94), "",INDEX(AD:AD, SMALL(IF(AD$71:AD$94<>"", ROW($71:$94)), ROW(AC24)))) ->  | AF121: =IF(ROW(AF24)> COUNTA(AF$71:AF$94), "",INDEX(AF:AF, SMALL(IF(AF$71:AF$94<>"", ROW($71:$94)), ROW(AE24)))) -> 
B124: Preise von Größe abhängig bestimmen
B125: =IF(B15=0,0,IF(OR(B15=$B$71,B15=$B$72,B15=$B$73,B15=$B$74,B15=$B$75,B15=$B$76),$B$10,IF(OR(B15=$B$77,B15=$B$78,B15=$B$79,B15=$B$80,B15=$B$81,B15=$B$82,B15=$B$83,B15=$B$84,B15=$B$85,B15=$B$86,B15=$B$87,B15=$B$88,B15=$B$89,B15=$B$90,B15=$B$91,B15=$B$92,B15=$B$93,B15=$B$94),$C$10,0))) -> 0 | D125: =IF(D15=0,0,IF(OR(D15=$D$71,D15=$D$72,D15=$D$73,D15=$D$74,D15=$D$75,D15=$D$76),$D$10,IF(OR(D15=$D$77,D15=$D$78,D15=$D$79,D15=$D$80,D15=$D$81,D15=$D$82,D15=$D$83,D15=$D$84,D15=$D$85,D15=$D$86,D15=$D$87,D15=$D$88,D15=$D$89,D15=$D$90,D15=$D$91,D15=$D$92,D15=$D$93,D15=$D$94),$E$10,0))) -> 0 | F125: =IF(F15=0,0,IF(OR(F15=$F$71,F15=$F$72,F15=$F$73,F15=$F$74,F15=$F$75,F15=$F$76),$F$10,IF(OR(F15=$F$77,F15=$F$78,F15=$F$79,F15=$F$80,F15=$F$81,F15=$F$82,F15=$F$83,F15=$F$84,F15=$F$85,F15=$F$86,F15=$F$87,F15=$F$88,F15=$F$89,F15=$F$90,F15=$F$91,F15=$F$92,F15=$F$93,F15=$F$94),$G$10,0))) -> 0 | H125: =IF(H15=0,0,IF(OR(H15=$H$71,H15=$H$72,H15=$H$73,H15=$H$74,H15=$H$75,H15=$H$76),$H$10,IF(OR(H15=$H$77,H15=$H$78,H15=$H$79,H15=$H$80,H15=$H$81,H15=$H$82,H15=$H$83,H15=$H$84,H15=$H$85,H15=$H$86,H15=$H$87,H15=$H$88,H15=$H$89,H15=$H$90,H15=$H$91,H15=$H$92,H15=$H$93,H15=$H$94),$I$10,0))) -> 0 | J125: =IF(J15=0,0,IF(OR(J15=$J$71,J15=$J$72,J15=$J$73,J15=$J$74,J15=$J$75,J15=$J$76),$J$10,IF(OR(J15=$J$77,J15=$J$78,J15=$J$79,J15=$J$80,J15=$J$81,J15=$J$82,J15=$J$83,J15=$J$84,J15=$J$85,J15=$J$86,J15=$J$87,J15=$J$88,J15=$J$89,J15=$J$90,J15=$J$91,J15=$J$92,J15=$J$93,J15=$J$94),$K$10,0))) -> 0 | L125: =IF(L15=0,0,IF(OR(L15=L$71,L15=L$72,L15=L$73,L15=L$74,L15=L$75,L15=L$76),L$10,IF(OR(L15=L$77,L15=L$78,L15=L$79,L15=L$80,L15=L$81,L15=L$82,L15=L$83,L15=L$84,L15=L$85,L15=L$86,L15=L$87,L15=L$88,L15=L$89,L15=L$90,L15=L$91,L15=L$92,L15=L$93,L15=L$94),M$10,0))) -> 0 | N125: =IF(N15=0,0,IF(OR(N15=N$71,N15=N$72,N15=N$73,N15=N$74,N15=N$75,N15=N$76),N$10,IF(OR(N15=N$77,N15=N$78,N15=N$79,N15=N$80,N15=N$81,N15=N$82,N15=N$83,N15=N$84,N15=N$85,N15=N$86,N15=N$87,N15=N$88,N15=N$89,N15=N$90,N15=N$91,N15=N$92,N15=N$93,N15=N$94),O$10,0))) -> 0 | P125: =IF(P15=0,0,IF(OR(P15=P$71,P15=P$72,P15=P$73,P15=P$74,P15=P$75,P15=P$76),P$10,IF(OR(P15=P$77,P15=P$78,P15=P$79,P15=P$80,P15=P$81,P15=P$82,P15=P$83,P15=P$84,P15=P$85,P15=P$86,P15=P$87,P15=P$88,P15=P$89,P15=P$90,P15=P$91,P15=P$92,P15=P$93,P15=P$94),Q$10,0))) -> 0 | R125: =IF(R15=0,0,IF(OR(R15=R$71,R15=R$72,R15=R$73,R15=R$74,R15=R$75,R15=R$76),R$10,IF(OR(R15=R$77,R15=R$78,R15=R$79,R15=R$80,R15=R$81,R15=R$82,R15=R$83,R15=R$84,R15=R$85,R15=R$86,R15=R$87,R15=R$88,R15=R$89,R15=R$90,R15=R$91,R15=R$92,R15=R$93,R15=R$94),S$10,0))) -> 0 | T125: =IF(T15=0,0,IF(OR(T15=T$71,T15=T$72,T15=T$73,T15=T$74,T15=T$75,T15=T$76),T$10,IF(OR(T15=T$77,T15=T$78,T15=T$79,T15=T$80,T15=T$81,T15=T$82,T15=T$83,T15=T$84,T15=T$85,T15=T$86,T15=T$87,T15=T$88,T15=T$89,T15=T$90,T15=T$91,T15=T$92,T15=T$93,T15=T$94),U$10,0))) -> 0 | V125: =IF(V15=0,0,IF(OR(V15=V$71,V15=V$72,V15=V$73,V15=V$74,V15=V$75,V15=V$76),V$10,IF(OR(V15=V$77,V15=V$78,V15=V$79,V15=V$80,V15=V$81,V15=V$82,V15=V$83,V15=V$84,V15=V$85,V15=V$86,V15=V$87,V15=V$88,V15=V$89,V15=V$90,V15=V$91,V15=V$92,V15=V$93,V15=V$94),W$10,0))) -> 0 | X125: =IF(X15=0,0,IF(OR(X15=X$71,X15=X$72,X15=X$73,X15=X$74,X15=X$75,X15=X$76),X$10,IF(OR(X15=X$77,X15=X$78,X15=X$79,X15=X$80,X15=X$81,X15=X$82,X15=X$83,X15=X$84,X15=X$85,X15=X$86,X15=X$87,X15=X$88,X15=X$89,X15=X$90,X15=X$91,X15=X$92,X15=X$93,X15=X$94),Y$10,0))) -> 0 | Z125: =IF(Z15=0,0,IF(OR(Z15=Z$71,Z15=Z$72,Z15=Z$73,Z15=Z$74,Z15=Z$75,Z15=Z$76),Z$10,IF(OR(Z15=Z$77,Z15=Z$78,Z15=Z$79,Z15=Z$80,Z15=Z$81,Z15=Z$82,Z15=Z$83,Z15=Z$84,Z15=Z$85,Z15=Z$86,Z15=Z$87,Z15=Z$88,Z15=Z$89,Z15=Z$90,Z15=Z$91,Z15=Z$92,Z15=Z$93,Z15=Z$94),AA$10,0))) -> 0 | AB125: =IF(AB15=0,0,IF(OR(AB15=AB$71,AB15=AB$72,AB15=AB$73,AB15=AB$74,AB15=AB$75,AB15=AB$76),AB$10,IF(OR(AB15=AB$77,AB15=AB$78,AB15=AB$79,AB15=AB$80,AB15=AB$81,AB15=AB$82,AB15=AB$83,AB15=AB$84,AB15=AB$85,AB15=AB$86,AB15=AB$87,AB15=AB$88,AB15=AB$89,AB15=AB$90,AB15=AB$91,AB15=AB$92,AB15=AB$93,AB15=AB$94),AC$10,0))) -> 0 | AD125: =IF(AD15=0,0,IF(OR(AD15=AD$71,AD15=AD$72,AD15=AD$73,AD15=AD$74,AD15=AD$75,AD15=AD$76),AD$10,IF(OR(AD15=AD$77,AD15=AD$78,AD15=AD$79,AD15=AD$80,AD15=AD$81,AD15=AD$82,AD15=AD$83,AD15=AD$84,AD15=AD$85,AD15=AD$86,AD15=AD$87,AD15=AD$88,AD15=AD$89,AD15=AD$90,AD15=AD$91,AD15=AD$92,AD15=AD$93,AD15=AD$94),AE$10,0))) -> 0 | AF125: =IF(AF15=0,0,IF(OR(AF15=AF$71,AF15=AF$72,AF15=AF$73,AF15=AF$74,AF15=AF$75,AF15=AF$76),AF$10,IF(OR(AF15=AF$77,AF15=AF$78,AF15=AF$79,AF15=AF$80,AF15=AF$81,AF15=AF$82,AF15=AF$83,AF15=AF$84,AF15=AF$85,AF15=AF$86,AF15=AF$87,AF15=AF$88,AF15=AF$89,AF15=AF$90,AF15=AF$91,AF15=AF$92,AF15=AF$93,AF15=AF$94),AG$10,0))) -> 0
B126: =IF(B16=0,0,IF(OR(B16=$B$71,B16=$B$72,B16=$B$73,B16=$B$74,B16=B$75,B16=$B$76),$B$10,IF(OR(B16=$B$77,B16=$B$78,B16=$B$79,B16=$B$80,B16=$B$81,B16=$B$82,B16=$B$83,B16=$B$84,B16=$B$85,B16=$B$86,B16=$B$87,B16=$B$88,B16=$B$89,B16=$B$90,B16=$B$91,B16=$B$92,B16=$B$93,B16=$B$94),$C$10,0))) -> 0 | D126: 0 | F126: 0 | H126: 0 | J126: 0 | L126: 0 | N126: 0 | P126: 0 | R126: 0 | T126: 0 | V126: 0 | X126: 0 | Z126: 0 | AB126: 0 | AD126: 0 | AF126: 0
B127: 0 | D127: 0 | F127: 0 | H127: 0 | J127: 0 | L127: 0 | N127: 0 | P127: 0 | R127: 0 | T127: 0 | V127: 0 | X127: 0 | Z127: 0 | AB127: 0 | AD127: 0 | AF127: 0
B128: 0 | D128: 0 | F128: 0 | H128: 0 | J128: 0 | L128: 0 | N128: 0 | P128: 0 | R128: 0 | T128: 0 | V128: 0 | X128: 0 | Z128: 0 | AB128: 0 | AD128: 0 | AF128: 0
B129: 0 | D129: 0 | F129: 0 | H129: 0 | J129: 0 | L129: 0 | N129: 0 | P129: 0 | R129: 0 | T129: 0 | V129: 0 | X129: 0 | Z129: 0 | AB129: 0 | AD129: 0 | AF129: 0
B130: 0 | D130: 0 | F130: 0 | H130: 0 | J130: 0 | L130: 0 | N130: 0 | P130: 0 | R130: 0 | T130: 0 | V130: 0 | X130: 0 | Z130: 0 | AB130: 0 | AD130: 0 | AF130: 0
B131: 0 | D131: 0 | F131: 0 | H131: 0 | J131: 0 | L131: 0 | N131: 0 | P131: 0 | R131: 0 | T131: 0 | V131: 0 | X131: 0 | Z131: 0 | AB131: 0 | AD131: 0 | AF131: 0
B132: 0 | D132: 0 | F132: 0 | H132: 0 | J132: 0 | L132: 0 | N132: 0 | P132: 0 | R132: 0 | T132: 0 | V132: 0 | X132: 0 | Z132: 0 | AB132: 0 | AD132: 0 | AF132: 0
B133: 0 | D133: 0 | F133: 0 | H133: 0 | J133: 0 | L133: 0 | N133: 0 | P133: 0 | R133: 0 | T133: 0 | V133: 0 | X133: 0 | Z133: 0 | AB133: 0 | AD133: 0 | AF133: 0
B134: 0 | D134: 0 | F134: 0 | H134: 0 | J134: 0 | L134: 0 | N134: 0 | P134: 0 | R134: 0 | T134: 0 | V134: 0 | X134: 0 | Z134: 0 | AB134: 0 | AD134: 0 | AF134: 0
B135: 0 | D135: 0 | F135: 0 | H135: 0 | J135: 0 | L135: 0 | N135: 0 | P135: 0 | R135: 0 | T135: 0 | V135: 0 | X135: 0 | Z135: 0 | AB135: 0 | AD135: 0 | AF135: 0
B136: 0 | D136: 0 | F136: 0 | H136: 0 | J136: 0 | L136: 0 | N136: 0 | P136: 0 | R136: 0 | T136: 0 | V136: 0 | X136: 0 | Z136: 0 | AB136: 0 | AD136: 0 | AF136: 0
B137: 0 | D137: 0 | F137: 0 | H137: 0 | J137: 0 | L137: 0 | N137: 0 | P137: 0 | R137: 0 | T137: 0 | V137: 0 | X137: 0 | Z137: 0 | AB137: 0 | AD137: 0 | AF137: 0
B138: 0 | D138: 0 | F138: 0 | H138: 0 | J138: 0 | L138: 0 | N138: 0 | P138: 0 | R138: 0 | T138: 0 | V138: 0 | X138: 0 | Z138: 0 | AB138: 0 | AD138: 0 | AF138: 0
B139: 0 | D139: 0 | F139: 0 | H139: 0 | J139: 0 | L139: 0 | N139: 0 | P139: 0 | R139: 0 | T139: 0 | V139: 0 | X139: 0 | Z139: 0 | AB139: 0 | AD139: 0 | AF139: 0
B140: 0 | D140: 0 | F140: 0 | H140: 0 | J140: 0 | L140: 0 | N140: 0 | P140: 0 | R140: 0 | T140: 0 | V140: 0 | X140: 0 | Z140: 0 | AB140: 0 | AD140: 0 | AF140: 0
B141: 0 | D141: 0 | F141: 0 | H141: 0 | J141: 0 | L141: 0 | N141: 0 | P141: 0 | R141: 0 | T141: 0 | V141: 0 | X141: 0 | Z141: 0 | AB141: 0 | AD141: 0 | AF141: 0
B142: 0 | D142: 0 | F142: 0 | H142: 0 | J142: 0 | L142: 0 | N142: 0 | P142: 0 | R142: 0 | T142: 0 | V142: 0 | X142: 0 | Z142: 0 | AB142: 0 | AD142: 0 | AF142: 0
B143: 0 | D143: 0 | F143: 0 | H143: 0 | J143: 0 | L143: 0 | N143: 0 | P143: 0 | R143: 0 | T143: 0 | V143: 0 | X143: 0 | Z143: 0 | AB143: 0 | AD143: 0 | AF143: 0
B144: 0 | D144: 0 | F144: 0 | H144: 0 | J144: 0 | L144: 0 | N144: 0 | P144: 0 | R144: 0 | T144: 0 | V144: 0 | X144: 0 | Z144: 0 | AB144: 0 | AD144: 0 | AF144: 0
B145: 0 | D145: 0 | F145: 0 | H145: 0 | J145: 0 | L145: 0 | N145: 0 | P145: 0 | R145: 0 | T145: 0 | V145: 0 | X145: 0 | Z145: 0 | AB145: 0 | AD145: 0 | AF145: 0
B146: 0 | D146: 0 | F146: 0 | H146: 0 | J146: 0 | L146: 0 | N146: 0 | P146: 0 | R146: 0 | T146: 0 | V146: 0 | X146: 0 | Z146: 0 | AB146: 0 | AD146: 0 | AF146: 0 | AI146: Brutto Preis
B147: 0 | D147: 0 | F147: 0 | H147: 0 | J147: 0 | L147: 0 | N147: 0 | P147: 0 | R147: 0 | T147: 0 | V147: 0 | X147: 0 | Z147: 0 | AB147: 0 | AD147: 0 | AF147: 0
B148: 0 | D148: 0 | F148: 0 | H148: 0 | J148: 0 | L148: 0 | N148: 0 | P148: 0 | R148: 0 | T148: 0 | V148: 0 | X148: 0 | Z148: 0 | AB148: 0 | AD148: 0 | AF148: 0
B149: 0 | D149: 0 | F149: 0 | H149: 0 | J149: 0 | L149: 0 | N149: 0 | P149: 0 | R149: 0 | T149: 0 | V149: 0 | X149: 0 | Z149: 0 | AB149: 0 | AD149: 0 | AF149: 0
B150: 0 | D150: 0 | F150: 0 | H150: 0 | J150: 0 | L150: 0 | N150: 0 | P150: 0 | R150: 0 | T150: 0 | V150: 0 | X150: 0 | Z150: 0 | AB150: 0 | AD150: 0 | AF150: 0
B151: 0 | D151: 0 | F151: 0 | H151: 0 | J151: 0 | L151: 0 | N151: 0 | P151: 0 | R151: 0 | T151: 0 | V151: 0 | X151: 0 | Z151: 0 | AB151: 0 | AD151: 0 | AF151: 0
B152: 0 | D152: 0 | F152: 0 | H152: 0 | J152: 0 | L152: 0 | N152: 0 | P152: 0 | R152: 0 | T152: 0 | V152: 0 | X152: 0 | Z152: 0 | AB152: 0 | AD152: 0 | AF152: 0
B153: 0 | D153: 0 | F153: 0 | H153: 0 | J153: 0 | L153: 0 | N153: 0 | P153: 0 | R153: 0 | T153: 0 | V153: 0 | X153: 0 | Z153: 0 | AB153: 0 | AD153: 0 | AF153: 0
B154: 0 | D154: 0 | F154: 0 | H154: 0 | J154: 0 | L154: 0 | N154: 0 | P154: 0 | R154: 0 | T154: 0 | V154: 0 | X154: 0 | Z154: 0 | AB154: 0 | AD154: 0 | AF154: 0
B155: 0 | D155: 0 | F155: 0 | H155: 0 | J155: 0 | L155: 0 | N155: 0 | P155: 0 | R155: 0 | T155: 0 | V155: 0 | X155: 0 | Z155: 0 | AB155: 0 | AD155: 0 | AF155: 0
B156: 0 | D156: 0 | F156: 0 | H156: 0 | J156: 0 | L156: 0 | N156: 0 | P156: 0 | R156: 0 | T156: 0 | V156: 0 | X156: 0 | Z156: 0 | AB156: 0 | AD156: 0 | AF156: 0
B157: 0 | D157: 0 | F157: 0 | H157: 0 | J157: 0 | L157: 0 | N157: 0 | P157: 0 | R157: 0 | T157: 0 | V157: 0 | X157: 0 | Z157: 0 | AB157: 0 | AD157: 0 | AF157: 0
B158: 0 | D158: 0 | F158: 0 | H158: 0 | J158: 0 | L158: 0 | N158: 0 | P158: 0 | R158: 0 | T158: 0 | V158: 0 | X158: 0 | Z158: 0 | AB158: 0 | AD158: 0 | AF158: 0
B159: 0 | D159: 0 | F159: 0 | H159: 0 | J159: 0 | L159: 0 | N159: 0 | P159: 0 | R159: 0 | T159: 0 | V159: 0 | X159: 0 | Z159: 0 | AB159: 0 | AD159: 0 | AF159: 0
B160: 0 | D160: 0 | F160: 0 | H160: 0 | J160: 0 | L160: 0 | N160: 0 | P160: 0 | R160: 0 | T160: 0 | V160: 0 | X160: 0 | Z160: 0 | AB160: 0 | AD160: 0 | AF160: 0
B161: 0 | D161: 0 | F161: 0 | H161: 0 | J161: 0 | L161: 0 | N161: 0 | P161: 0 | R161: 0 | T161: 0 | V161: 0 | X161: 0 | Z161: 0 | AB161: 0 | AD161: 0 | AF161: 0
B162: 0 | D162: 0 | F162: 0 | H162: 0 | J162: 0 | L162: 0 | N162: 0 | P162: 0 | R162: 0 | T162: 0 | V162: 0 | X162: 0 | Z162: 0 | AB162: 0 | AD162: 0 | AF162: 0
B163: 0 | D163: 0 | F163: 0 | H163: 0 | J163: 0 | L163: 0 | N163: 0 | P163: 0 | R163: 0 | T163: 0 | V163: 0 | X163: 0 | Z163: 0 | AB163: 0 | AD163: 0 | AF163: 0
B164: 0 | D164: 0 | F164: 0 | H164: 0 | J164: 0 | L164: 0 | N164: 0 | P164: 0 | R164: 0 | T164: 0 | V164: 0 | X164: 0 | Z164: 0 | AB164: 0 | AD164: 0 | AF164: 0
B165: 0 | D165: 0 | F165: 0 | H165: 0 | J165: 0 | L165: 0 | N165: 0 | P165: 0 | R165: 0 | T165: 0 | V165: 0 | X165: 0 | Z165: 0 | AB165: 0 | AD165: 0 | AF165: 0
B166: 0 | D166: 0 | F166: 0 | H166: 0 | J166: 0 | L166: 0 | N166: 0 | P166: 0 | R166: 0 | T166: 0 | V166: 0 | X166: 0 | Z166: 0 | AB166: 0 | AD166: 0 | AF166: 0
B167: 0 | D167: 0 | F167: 0 | H167: 0 | J167: 0 | L167: 0 | N167: 0 | P167: 0 | R167: 0 | T167: 0 | V167: 0 | X167: 0 | Z167: 0 | AB167: 0 | AD167: 0 | AF167: 0
B168: 0 | D168: 0 | F168: 0 | H168: 0 | J168: 0 | L168: 0 | N168: 0 | P168: 0 | R168: 0 | T168: 0 | V168: 0 | X168: 0 | Z168: 0 | AB168: 0 | AD168: 0 | AF168: 0
B169: 0 | D169: 0 | F169: 0 | H169: 0 | J169: 0 | L169: 0 | N169: 0 | P169: 0 | R169: 0 | T169: 0 | V169: 0 | X169: 0 | Z169: 0 | AB169: 0 | AD169: 0 | AF169: 0 | AI169: =SUM(B125:AG170) -> 0.00 €
B170: 0 | D170: 0 | F170: 0 | H170: 0 | J170: 0 | L170: 0 | N170: 0 | P170: 0 | R170: 0 | T170: 0 | V170: 0 | X170: 0 | Z170: 0 | AB170: 0 | AD170: 0 | AF170: 0
B172: Preise abzüglich Rabatt !
B173: =ROUNDUP(B125-(B125*Rabatt),1) -> 0.00 € | D173: =ROUNDUP(D125-(D125*Rabatt),1) -> 0.00 € | F173: =ROUNDUP(F125-(F125*Rabatt),1) -> 0.00 € | H173: =ROUNDUP(H125-(H125*Rabatt),1) -> 0.00 € | J173: =ROUNDUP(J125-(J125*Rabatt),1) -> 0.00 € | L173: =ROUNDUP(L125-(L125*Rabatt),1) -> 0.00 € | N173: =ROUNDUP(N125-(N125*Rabatt),1) -> 0.00 € | P173: =ROUNDUP(P125-(P125*Rabatt),1) -> 0.00 € | R173: =ROUNDUP(R125-(R125*Rabatt),1) -> 0.00 € | T173: =ROUNDUP(T125-(T125*Rabatt),1) -> 0.00 € | V173: =ROUNDUP(V125-(V125*Rabatt),1) -> 0.00 € | X173: =ROUNDUP(X125-(X125*Rabatt),1) -> 0.00 € | Z173: =ROUNDUP(Z125-(Z125*Rabatt),1) -> 0.00 € | AB173: =ROUNDUP(AB125-(AB125*Rabatt),1) -> 0.00 € | AD173: =ROUNDUP(AD125-(AD125*Rabatt),1) -> 0.00 € | AF173: =ROUNDUP(AF125-(AF125*Rabatt),1) -> 0.00 €
B174: 0.00 € | D174: 0.00 € | F174: 0.00 € | H174: 0.00 € | J174: 0.00 € | L174: 0.00 € | N174: 0.00 € | P174: 0.00 € | R174: 0.00 € | T174: 0.00 € | V174: 0.00 € | X174: 0.00 € | Z174: 0.00 € | AB174: 0.00 € | AD174: 0.00 € | AF174: 0.00 €
B175: 0.00 € | D175: 0.00 € | F175: 0.00 € | H175: 0.00 € | J175: 0.00 € | L175: 0.00 € | N175: 0.00 € | P175: 0.00 € | R175: 0.00 € | T175: 0.00 € | V175: 0.00 € | X175: 0.00 € | Z175: 0.00 € | AB175: 0.00 € | AD175: 0.00 € | AF175: 0.00 €
B176: 0.00 € | D176: 0.00 € | F176: 0.00 € | H176: 0.00 € | J176: 0.00 € | L176: 0.00 € | N176: 0.00 € | P176: 0.00 € | R176: 0.00 € | T176: 0.00 € | V176: 0.00 € | X176: 0.00 € | Z176: 0.00 € | AB176: 0.00 € | AD176: 0.00 € | AF176: 0.00 €
B177: 0.00 € | D177: 0.00 € | F177: 0.00 € | H177: 0.00 € | J177: 0.00 € | L177: 0.00 € | N177: 0.00 € | P177: 0.00 € | R177: 0.00 € | T177: 0.00 € | V177: 0.00 € | X177: 0.00 € | Z177: 0.00 € | AB177: 0.00 € | AD177: 0.00 € | AF177: 0.00 €
B178: 0.00 € | D178: 0.00 € | F178: 0.00 € | H178: 0.00 € | J178: 0.00 € | L178: 0.00 € | N178: 0.00 € | P178: 0.00 € | R178: 0.00 € | T178: 0.00 € | V178: 0.00 € | X178: 0.00 € | Z178: 0.00 € | AB178: 0.00 € | AD178: 0.00 € | AF178: 0.00 €
B179: 0.00 € | D179: 0.00 € | F179: 0.00 € | H179: 0.00 € | J179: 0.00 € | L179: 0.00 € | N179: 0.00 € | P179: 0.00 € | R179: 0.00 € | T179: 0.00 € | V179: 0.00 € | X179: 0.00 € | Z179: 0.00 € | AB179: 0.00 € | AD179: 0.00 € | AF179: 0.00 €
B180: 0.00 € | D180: 0.00 € | F180: 0.00 € | H180: 0.00 € | J180: 0.00 € | L180: 0.00 € | N180: 0.00 € | P180: 0.00 € | R180: 0.00 € | T180: 0.00 € | V180: 0.00 € | X180: 0.00 € | Z180: 0.00 € | AB180: 0.00 € | AD180: 0.00 € | AF180: 0.00 €
B181: 0.00 € | D181: 0.00 € | F181: 0.00 € | H181: 0.00 € | J181: 0.00 € | L181: 0.00 € | N181: 0.00 € | P181: 0.00 € | R181: 0.00 € | T181: 0.00 € | V181: 0.00 € | X181: 0.00 € | Z181: 0.00 € | AB181: 0.00 € | AD181: 0.00 € | AF181: 0.00 €
B182: 0.00 € | D182: 0.00 € | F182: 0.00 € | H182: 0.00 € | J182: 0.00 € | L182: 0.00 € | N182: 0.00 € | P182: 0.00 € | R182: 0.00 € | T182: 0.00 € | V182: 0.00 € | X182: 0.00 € | Z182: 0.00 € | AB182: 0.00 € | AD182: 0.00 € | AF182: 0.00 €
B183: 0.00 € | D183: 0.00 € | F183: 0.00 € | H183: 0.00 € | J183: 0.00 € | L183: 0.00 € | N183: 0.00 € | P183: 0.00 € | R183: 0.00 € | T183: 0.00 € | V183: 0.00 € | X183: 0.00 € | Z183: 0.00 € | AB183: 0.00 € | AD183: 0.00 € | AF183: 0.00 €
B184: 0.00 € | D184: 0.00 € | F184: 0.00 € | H184: 0.00 € | J184: 0.00 € | L184: 0.00 € | N184: 0.00 € | P184: 0.00 € | R184: 0.00 € | T184: 0.00 € | V184: 0.00 € | X184: 0.00 € | Z184: 0.00 € | AB184: 0.00 € | AD184: 0.00 € | AF184: 0.00 €
B185: 0.00 € | D185: 0.00 € | F185: 0.00 € | H185: 0.00 € | J185: 0.00 € | L185: 0.00 € | N185: 0.00 € | P185: 0.00 € | R185: 0.00 € | T185: 0.00 € | V185: 0.00 € | X185: 0.00 € | Z185: 0.00 € | AB185: 0.00 € | AD185: 0.00 € | AF185: 0.00 €
B186: 0.00 € | D186: 0.00 € | F186: 0.00 € | H186: 0.00 € | J186: 0.00 € | L186: 0.00 € | N186: 0.00 € | P186: 0.00 € | R186: 0.00 € | T186: 0.00 € | V186: 0.00 € | X186: 0.00 € | Z186: 0.00 € | AB186: 0.00 € | AD186: 0.00 € | AF186: 0.00 €
B187: 0.00 € | D187: 0.00 € | F187: 0.00 € | H187: 0.00 € | J187: 0.00 € | L187: 0.00 € | N187: 0.00 € | P187: 0.00 € | R187: 0.00 € | T187: 0.00 € | V187: 0.00 € | X187: 0.00 € | Z187: 0.00 € | AB187: 0.00 € | AD187: 0.00 € | AF187: 0.00 €
B188: 0.00 € | D188: 0.00 € | F188: 0.00 € | H188: 0.00 € | J188: 0.00 € | L188: 0.00 € | N188: 0.00 € | P188: 0.00 € | R188: 0.00 € | T188: 0.00 € | V188: 0.00 € | X188: 0.00 € | Z188: 0.00 € | AB188: 0.00 € | AD188: 0.00 € | AF188: 0.00 €
B189: 0.00 € | D189: 0.00 € | F189: 0.00 € | H189: 0.00 € | J189: 0.00 € | L189: 0.00 € | N189: 0.00 € | P189: 0.00 € | R189: 0.00 € | T189: 0.00 € | V189: 0.00 € | X189: 0.00 € | Z189: 0.00 € | AB189: 0.00 € | AD189: 0.00 € | AF189: 0.00 €
B190: 0.00 € | D190: 0.00 € | F190: 0.00 € | H190: 0.00 € | J190: 0.00 € | L190: 0.00 € | N190: 0.00 € | P190: 0.00 € | R190: 0.00 € | T190: 0.00 € | V190: 0.00 € | X190: 0.00 € | Z190: 0.00 € | AB190: 0.00 € | AD190: 0.00 € | AF190: 0.00 € | AI190: Rabatt
B191: 0.00 € | D191: 0.00 € | F191: 0.00 € | H191: 0.00 € | J191: 0.00 € | L191: 0.00 € | N191: 0.00 € | P191: 0.00 € | R191: 0.00 € | T191: 0.00 € | V191: 0.00 € | X191: 0.00 € | Z191: 0.00 € | AB191: 0.00 € | AD191: 0.00 € | AF191: 0.00 € | AI191: Summe:
B192: 0.00 € | D192: 0.00 € | F192: 0.00 € | H192: 0.00 € | J192: 0.00 € | L192: 0.00 € | N192: 0.00 € | P192: 0.00 € | R192: 0.00 € | T192: 0.00 € | V192: 0.00 € | X192: 0.00 € | Z192: 0.00 € | AB192: 0.00 € | AD192: 0.00 € | AF192: 0.00 €
B193: 0.00 € | D193: 0.00 € | F193: 0.00 € | H193: 0.00 € | J193: 0.00 € | L193: 0.00 € | N193: 0.00 € | P193: 0.00 € | R193: 0.00 € | T193: 0.00 € | V193: 0.00 € | X193: 0.00 € | Z193: 0.00 € | AB193: 0.00 € | AD193: 0.00 € | AF193: 0.00 €
B194: 0.00 € | D194: 0.00 € | F194: 0.00 € | H194: 0.00 € | J194: 0.00 € | L194: 0.00 € | N194: 0.00 € | P194: 0.00 € | R194: 0.00 € | T194: 0.00 € | V194: 0.00 € | X194: 0.00 € | Z194: 0.00 € | AB194: 0.00 € | AD194: 0.00 € | AF194: 0.00 €
B195: 0.00 € | D195: 0.00 € | F195: 0.00 € | H195: 0.00 € | J195: 0.00 € | L195: 0.00 € | N195: 0.00 € | P195: 0.00 € | R195: 0.00 € | T195: 0.00 € | V195: 0.00 € | X195: 0.00 € | Z195: 0.00 € | AB195: 0.00 € | AD195: 0.00 € | AF195: 0.00 €
B196: 0.00 € | D196: 0.00 € | F196: 0.00 € | H196: 0.00 € | J196: 0.00 € | L196: 0.00 € | N196: 0.00 € | P196: 0.00 € | R196: 0.00 € | T196: 0.00 € | V196: 0.00 € | X196: 0.00 € | Z196: 0.00 € | AB196: 0.00 € | AD196: 0.00 € | AF196: 0.00 €
B197: 0.00 € | D197: 0.00 € | F197: 0.00 € | H197: 0.00 € | J197: 0.00 € | L197: 0.00 € | N197: 0.00 € | P197: 0.00 € | R197: 0.00 € | T197: 0.00 € | V197: 0.00 € | X197: 0.00 € | Z197: 0.00 € | AB197: 0.00 € | AD197: 0.00 € | AF197: 0.00 €
B198: 0.00 € | D198: 0.00 € | F198: 0.00 € | H198: 0.00 € | J198: 0.00 € | L198: 0.00 € | N198: 0.00 € | P198: 0.00 € | R198: 0.00 € | T198: 0.00 € | V198: 0.00 € | X198: 0.00 € | Z198: 0.00 € | AB198: 0.00 € | AD198: 0.00 € | AF198: 0.00 €
B199: 0.00 € | D199: 0.00 € | F199: 0.00 € | H199: 0.00 € | J199: 0.00 € | L199: 0.00 € | N199: 0.00 € | P199: 0.00 € | R199: 0.00 € | T199: 0.00 € | V199: 0.00 € | X199: 0.00 € | Z199: 0.00 € | AB199: 0.00 € | AD199: 0.00 € | AF199: 0.00 €
B200: 0.00 € | D200: 0.00 € | F200: 0.00 € | H200: 0.00 € | J200: 0.00 € | L200: 0.00 € | N200: 0.00 € | P200: 0.00 € | R200: 0.00 € | T200: 0.00 € | V200: 0.00 € | X200: 0.00 € | Z200: 0.00 € | AB200: 0.00 € | AD200: 0.00 € | AF200: 0.00 €
B201: 0.00 € | D201: 0.00 € | F201: 0.00 € | H201: 0.00 € | J201: 0.00 € | L201: 0.00 € | N201: 0.00 € | P201: 0.00 € | R201: 0.00 € | T201: 0.00 € | V201: 0.00 € | X201: 0.00 € | Z201: 0.00 € | AB201: 0.00 € | AD201: 0.00 € | AF201: 0.00 €
B202: 0.00 € | D202: 0.00 € | F202: 0.00 € | H202: 0.00 € | J202: 0.00 € | L202: 0.00 € | N202: 0.00 € | P202: 0.00 € | R202: 0.00 € | T202: 0.00 € | V202: 0.00 € | X202: 0.00 € | Z202: 0.00 € | AB202: 0.00 € | AD202: 0.00 € | AF202: 0.00 €
B203: 0.00 € | D203: 0.00 € | F203: 0.00 € | H203: 0.00 € | J203: 0.00 € | L203: 0.00 € | N203: 0.00 € | P203: 0.00 € | R203: 0.00 € | T203: 0.00 € | V203: 0.00 € | X203: 0.00 € | Z203: 0.00 € | AB203: 0.00 € | AD203: 0.00 € | AF203: 0.00 €
B204: 0.00 € | D204: 0.00 € | F204: 0.00 € | H204: 0.00 € | J204: 0.00 € | L204: 0.00 € | N204: 0.00 € | P204: 0.00 € | R204: 0.00 € | T204: 0.00 € | V204: 0.00 € | X204: 0.00 € | Z204: 0.00 € | AB204: 0.00 € | AD204: 0.00 € | AF204: 0.00 €
B205: 0.00 € | D205: 0.00 € | F205: 0.00 € | H205: 0.00 € | J205: 0.00 € | L205: 0.00 € | N205: 0.00 € | P205: 0.00 € | R205: 0.00 € | T205: 0.00 € | V205: 0.00 € | X205: 0.00 € | Z205: 0.00 € | AB205: 0.00 € | AD205: 0.00 € | AF205: 0.00 €
... 186 more rows
